{"text_format":"1","workbook":"xlsx","n_sheets":5,"sheets":["RUMUSKARTU","DATA KARTU","KARTU PESERTA","DENAH UJIAN","TULISAN TEMPEL PENSIL"],"not_rendered":{"charts":0,"images":0,"macros":0,"external_links":0,"defined_names":6,"comments":0,"pivot_tables":0},"unopened":[],"bounds":{"document_bytes":16777216,"sheet_cells":100000,"rows_first":2000,"rows_last":500,"rows_between":2000,"halvings":0,"cell_chars":16384,"cell_head_chars":4096},"cells_cut":0,"cells_raw":0,"read":"whole","date_system":"1900"}

{"sheet":"RUMUSKARTU","index":0,"n_rows":6,"n_cols":3,"rows_kept":6,"cut":false,"hidden":false,"merged":[]}
["US","2017/2018",1]
["UM","2018/2019",2]
["UAMNU","2019/2020",3]
["USMT1","2020/2021",4]
["USMT2","2021/2022",5]
[null,null,6]

{"sheet":"DATA KARTU","index":1,"n_rows":77,"n_cols":14,"rows_kept":77,"cut":false,"hidden":false,"merged":[[3,1,3,2],[4,1,4,2],[5,1,5,2],[3,3,3,6],[4,3,4,6],[5,3,5,6],[0,3,0,6],[1,3,1,6],[2,3,2,6],[0,1,0,2],[1,1,1,2],[2,1,2,2]]}
[null,"JUDUL",null,"KARTU TANDA PESERTA",null,null,null,"UAMNU",null,{"$f":"IF(H1=\"UAMNU\",\"UJIAN AKHIR MA'ARIF NU\",IF(H1=\"UM\",\"UJIAN MADRASAH\",IF(H1=\"US\",\"UJIAN SEKOLAH\",IF(H1=\"USMT1\",\"UJIAN SEMESTER 1\",IF(H1=\"USMT2\",\"UJIAN SEMESTER 2\",\"\")))))","v":"UJIAN AKHIR MA'ARIF NU"}]
[null,"TP",null,"TAHUN PELAJARAN",null,null,null,"2020/2021"]
[null,"SEKOLAH",null,"MIS NURUL ISLAM LABRUK KIDUL"]
[null,"KEPALA MADRASAH",null,"SAHRONI,S.Pd.I"]
[null,"TEMPAT PELAKSANAAN",null,"Labruk Kidul"]
[null,"TANGGAL PELAKSANAAN",null,"2021-01-22"]
[1,2,3,4,5,6,7,8,9,10,11,12,13,14]
["No.","RUANG","Nomor Peserta","Nama Peserta","L/P","Tempat Lahir","Tanggal Lahir","YANG SESUAI AKTE","KET","KELAS","nomor","UJIAN NASIONAL"]
[1,"1A",{"$f":"K9&\"-\"&L9","v":"1-2021-001-8"},"AFABELLA TASLIMAH","P","Lumajang","2009-01-26",{"$f":"G9","v":"2009-01-26"},{"$f":"IF(H9=G9,\"sama\",\"tidak sama\")","v":"sama"},1,{"$f":"J9&\"-\"&TEXT($D$6,(\"yyyy\"))&\"-\"&TEXT(A9,\"#000\")","v":"1-2021-001"},8,"6A1",4402]
[2,"1A","1-2021-002-7","AFRINA HURAIYAH","P","Lumajang","2009-03-24",{"$f":"G10","v":"2009-03-24"},{"$f":"IF(H10=G10,\"sama\",\"tidak sama\")","v":"sama"},1,"1-2021-002",7,"6A2",4403]
[3,"1A","1-2021-003-6","AHMAD RAMADHANI","L","Lumajang","2008-09-13","2008-09-13","sama",1,"1-2021-003",6,"6A3",4435]
[4,"1A","1-2021-004-5","AIDA UMMU HABIBAH","P","Lumajang","2009-07-07","2009-07-07","sama",1,"1-2021-004",5,"6A4",4436]
[5,"1A","1-2021-005-4","ALIYA QUTROTUN NAILA","P","Lumajang","2008-02-20","2008-02-20","sama",1,"1-2021-005",4,"6A5",4438]
[6,"1A","1-2021-006-3","AMELINA FANISA QONITATILAH","P","Lumajang","2008-01-21","2008-01-21","sama",1,"1-2021-006",3,"6A6",4404]
[7,"1A","1-2021-007-2","EISRAL RADIT FITRATULLAH","L","Jember","2008-10-04","2008-10-04","sama",1,"1-2021-007",2,"6A7",4407]
[8,"1A","1-2021-008-9","FAIZATUL AULIA SARI","P","Lumajang","2008-12-13","2008-12-13","sama",1,"1-2021-008",9,"6A8",4410]
[9,"1A","1-2021-009-8","HANUM SYAIKHANATUL LAILI","P","Lumajang","2008-06-19","2008-06-19","sama",1,"1-2021-009",8,"6A9",4412]
[10,"1A","1-2021-010-7","IQBAL ABDILLAH AZZAKY","L","Lumajang","2008-07-07","2008-07-07","sama",1,"1-2021-010",7,"6A10",4414]
[11,"1A","1-2021-011-6","IZZA NUR HIKMAH","P","Lumajang","2009-01-07","2009-01-07","sama",1,"1-2021-011",6,"6A11",4445]
[12,"1A","1-2021-012-5","KHIKMATUL LAILIA SAPUTRI","P","Lumajang","2009-04-05","2009-04-05","sama",1,"1-2021-012",5,"6A12",4415]
[13,"1A","1-2021-013-4","MOCHAMAD AFLAH FAIRUZ","L","Lumajang","2008-07-20","2008-07-20","sama",1,"1-2021-013",4,"6A13",4447]
[14,"1A","1-2021-014-3","MOHAMMAD RIZKI FIRMANSYAH","L","Lumajang","2008-10-05","2008-10-05","sama",1,"1-2021-014",3,"6A14",4417]
[15,"1A","1-2021-015-2","MUFIDATUL DWI ILMIYAH","P","Lumajang","2008-08-20","2008-08-20","sama",1,"1-2021-015",2,"6A15",4451]
[16,"1A","1-2021-016-9","MUHAMMAD AULYA RAHMAN","L","Lumajang","2008-06-01","2008-06-01","sama",1,"1-2021-016",9,"6A16",4419]
[17,"1A","1-2021-017-8","MUHAMMAD AZKA MAHBUBY","L","Lumajang","2008-05-18","2008-05-18","sama",1,"1-2021-017",8,"6A17",4453]
[18,"1A","1-2021-018-7","MUHAMMAD NUFRI PRATAMA WIJAYA","L","Lumajang","2008-10-03","2008-10-03","sama",1,"1-2021-018",7,"6A18",4602]
[19,"1A","1-2021-019-6","MUKHAMAD ALFINO EKA PRIBADI","L","Lumajang","2008-07-15","2008-07-15","sama",1,"1-2021-019",6,"6A19",4455]
[20,"1A","1-2021-020-5","NABILA EKA ARIYANTI","P","Lumajang","2008-05-15","2008-05-15","sama",1,"1-2021-020",5,"6A20",4421]
[21,"1B","1-2021-021-4","NABILA PUTRI ZAKIANADA","P","Lumajang","2009-03-30","2009-03-30","sama",1,"1-2021-021",4,"6A21",4456]
[22,"1B","1-2021-022-3","NANDHITA AULIA NUGROHO","P","Lumajang","2008-03-29","2008-03-29","sama",1,"1-2021-022",3,"6A22",4422]
[23,"1B","1-2021-023-2","NISFI RAMADHANI","P","Lumajang","2008-09-15","2008-09-15","sama",1,"1-2021-023",2,"6A23",4423]
[24,"1B","1-2021-024-9","NOVI AGISTA SALSABILLA","P","Lumajang","2008-10-09","2008-10-09","sama",1,"1-2021-024",9,"6A24",4457]
[25,"1B","1-2021-025-8","NURIL RAMADHANI","P","Lumajang","2008-09-03","2008-09-03","sama",1,"1-2021-025",8,"6A25",4458]
[26,"1B","1-2021-026-7","RAHAYU IKA AGUSTIN","P","Lumajang","2008-08-17","2008-08-17","sama",1,"1-2021-026",7,"6A26",4424]
[27,"1B","1-2021-027-6","RIF`ATUL MUNAWAROH","P","Lumajang","2008-11-30","2008-11-30","sama",1,"1-2021-027",6,"6A27",4426]
[28,"1B","1-2021-028-5","SHABRINA ROSEMILA AN-NADHIFAH","P","Lumajang","2008-09-16","2008-09-16","sama",1,"1-2021-028",5,"6A28",4428]
[29,"1B","1-2021-029-4","SHAHWA PUTRI SALSABYLA","P","Lumajang","2008-12-21","2008-12-21","sama",1,"1-2021-029",4,"6A29",4429]
[30,"1B","1-2021-030-3","SITI ROBI`ATUL MAULIDIYAH","P","Lumajang","2009-03-15","2009-03-15","sama",1,"1-2021-030",3,"6A30",4430]
[31,"1B","1-2021-031-2","USWATUN KHOIRUNNISA","P","Lumajang","2008-11-24","2008-11-24","sama",1,"1-2021-031",2,"6A31",4431]
[32,"1B","1-2021-032-9","ZASKIA AYU RISTA","P","Lumajang","2008-06-27","2008-06-27","sama",1,"1-2021-032",9,"6A32",4464]
[33,"1B","1-2021-033-8","ABD. ROCHMAN NAJA FATLAN PRATAMA","L","Sidoarjo","2008-11-14","2008-11-14","sama",1,{"$f":"J41&\"-\"&TEXT($D$6,(\"yyyy\"))&\"-\"&TEXT(A41,\"#000\")","v":"1-2021-033"},8,"6B1",4604]
[34,"1B",{"$f":"K42&\"-\"&L42","v":"1-2021-034-7"},"ABDURRAHMAN FAQIH","L","Lumajang","2009-01-16",null,"tidak sama",1,"1-2021-034",7,"6B2",4432]
[35,"1B","1-2021-035-6","ACHMAD FARROIHUN MUSHOBIRONILLAH","L","Lumajang","2008-12-16",null,"tidak sama",1,"1-2021-035",6,"6B3",4400]
[36,"1B","1-2021-036-5","ACHMAD HASBI ASSIDDIQI","L","Lumajang","2008-03-05",null,"tidak sama",1,"1-2021-036",5,"6B4",4433]
[37,"1B","1-2021-037-4","ACHMAD REZA AKRAM ALAUDDIN","L","Lumajang","2009-05-05",null,"tidak sama",1,"1-2021-037",4,"6B5",4401]
[38,"1B","1-2021-038-3","ACHMAD YANI","L","Lumajang","2008-06-12",null,"tidak sama",1,"1-2021-038",3,"6B6",4434]
[39,"1B","1-2021-039-2","AKHMAD RIDWAN","L","Lumajang","2008-01-01",null,"tidak sama",1,"1-2021-039",2,"6B7",4437]
[40,"1B","1-2021-040-9","ANDREAN DWI YULIANO","L","Lumajang","2008-11-11",null,"tidak sama",1,"1-2021-040",9,"6B8",4439]
[41,"1C","1-2021-041-8","ASFAN FAKHRI BARANI","L","Lumajang","2008-10-18",null,"tidak sama",1,"1-2021-041",8,"6B9",4405]
[42,"1C","1-2021-042-7","DEVAN ADITYA SAPUTRA","L","Lumajang","2008-03-06",null,"tidak sama",1,"1-2021-042",7,"6B10",4406]
[43,"1C","1-2021-043-6","FAHRUL AHMAD FAHREZA","L","Lumajang","2008-12-14",null,"tidak sama",1,"1-2021-043",6,"6B11",4409]
[44,"1C","1-2021-044-5","FAUZIA AMELIA PUTRI","P","Lumajang","2009-01-30",null,"tidak sama",1,"1-2021-044",5,"6B12",4442]
[45,"1C","1-2021-045-4","FAZA AZIFAH SALSABILA","P","Lumajang","2009-03-23",null,"tidak sama",1,"1-2021-045",4,"6B13",4411]
[46,"1C","1-2021-046-3","HABIBIE NURUSSALAM","L","Lumajang","2008-04-23",null,"tidak sama",1,"1-2021-046",3,"6B14",4443]
[47,"1C","1-2021-047-2","HIMATURROSYIDAH","P","Lumajang","2008-09-29",null,"tidak sama",1,"1-2021-047",2,"6B15",4444]
[48,"1C","1-2021-048-9","IFKARINA NAILA SAUQYA","P","Lumajang","2009-02-13",null,"tidak sama",1,"1-2021-048",9,"6B16",4413]
[49,"1C","1-2021-049-8","KEISA AYU SASKIYAH","P","Lumajang","2009-02-02",null,"tidak sama",1,"1-2021-049",8,"6B17",4446]
[50,"1C","1-2021-050-7","MOCHAMMAD RENO FIRMANSYA","L","Lumajang","2008-04-21",null,"tidak sama",1,"1-2021-050",7,"6B18",4448]
[51,"1C","1-2021-051-6","MOHAMAD NUR KHAFID KHABIBULLOH","L","Lumajang","2008-06-06",null,"tidak sama",1,"1-2021-051",6,"6B19",4416]
[52,"1C","1-2021-052-5","MOHAMMAD NAUFAL NAWWARUDDIN","L","Lumajang","2009-02-19",null,"tidak sama",1,"1-2021-052",5,"6B20",4449]
[53,"1C","1-2021-053-4","MUCHAMAD PRIMA PAMBUDI","L","Lumajang","2008-03-16",null,"tidak sama",1,"1-2021-053",4,"6B21",4450]
[54,"1C","1-2021-054-3","MUHAMMAD ALFAN FATHONI","L","Lumajang","2008-08-19",null,"tidak sama",1,"1-2021-054",3,"6B22",4418]
[55,"1C","1-2021-055-2","MUHAMMAD AMINULLAH MAULUDANI","L","Lumajang","2009-03-09",null,"tidak sama",1,"1-2021-055",2,"6B23",4452]
[56,"1C","1-2021-056-9","MUHAMMAD DAVIN  LEVANTINO","L","Lumajang","2008-08-23",null,{"$f":"IF(H64=G64,\"sama\",\"tidak sama\")","v":"tidak sama"},1,"1-2021-056",9,"6B24",4454]
[57,"1C","1-2021-057-8","MUHAMMAD MAULANA PAHLEVY","L","Lumajang","2009-04-08",null,"tidak sama",1,"1-2021-057",8,"6B25",4420]
[58,"1C","1-2021-058-7","RADITYA NIRWANSYAH","L","Lumajang","2008-10-01",null,"tidak sama",1,"1-2021-058",7,"6B26",4459]
[59,"1C","1-2021-059-6","REVINA SRI UTARI","P","Lumajang","2008-05-19",null,"tidak sama",1,"1-2021-059",6,"6B27",4460]
[60,"1C","1-2021-060-5","REYHAN DWI ANDIKA","L","Lumajang","2008-07-05",null,"tidak sama",1,"1-2021-060",5,"6B28",4425]
[61,"1D","1-2021-061-4","RISKA LAURA TRIA OCTAVIA","P","Lumajang","2008-10-27",null,"tidak sama",1,"1-2021-061",4,"6B29",4461]
[62,"1D","1-2021-062-3","ROHMADONA DWI SAFITRI","P","Lumajang","2008-09-14",null,"tidak sama",1,"1-2021-062",3,"6B30",4427]
[63,"1D","1-2021-063-2","SALMAN ALFARIZI","L","Lumajang","2008-04-16",null,"tidak sama",1,"1-2021-063",2,"6B31",4462]
[64,"1D","1-2021-064-9","TAUFIQ KURROHMAN","L","Lumajang","2008-04-25",null,"tidak sama",1,"1-2021-064",9,"6B32",4463]
[65,"1D","1-2021-065-8",null,null,null,null,null,"sama",1,{"$f":"J73&\"-\"&TEXT($D$6,(\"yyyy\"))&\"-\"&TEXT(A73,\"#000\")","v":"1-2021-065"},8]
[66,"1D","1-2021-066-7",null,null,null,null,null,"sama",1,"1-2021-066",7]
[67,"1D","1-2021-067-6",null,null,null,null,null,"sama",1,"1-2021-067",6]
[68,"1D","1-2021-068-5",null,null,null,null,null,"sama",1,"1-2021-068",5]
[69,"1D","1-2021-069-4",null,null,null,null,null,"sama",1,"1-2021-069",4]

{"sheet":"KARTU PESERTA","index":2,"n_rows":517,"n_cols":18,"rows_kept":517,"cut":false,"hidden":false,"merged":[[508,5,508,6],[508,13,508,14],[509,5,509,6],[509,13,509,14],[513,2,515,2],[513,10,515,10],[512,5,512,7],[512,13,512,15],[504,1,504,5],[504,9,504,13],[505,1,505,5],[505,6,506,6],[505,9,505,13],[505,14,506,14],[506,1,506,5],[506,9,506,13],[491,5,491,6],[491,13,491,14],[492,5,492,6],[492,13,492,14],[496,2,498,2],[496,10,498,10],[495,5,495,7],[495,13,495,15],[487,1,487,5],[487,9,487,13],[488,1,488,5],[488,6,489,6],[488,9,488,13],[488,14,489,14],[489,1,489,5],[489,9,489,13],[474,5,474,6],[474,13,474,14],[475,5,475,6],[475,13,475,14],[479,2,481,2],[479,10,481,10],[478,5,478,7],[478,13,478,15],[470,1,470,5],[470,9,470,13],[471,1,471,5],[471,6,472,6],[471,9,471,13],[471,14,472,14],[472,1,472,5],[472,9,472,13],[457,5,457,6],[457,13,457,14],[458,5,458,6],[458,13,458,14],[462,2,464,2],[462,10,464,10],[461,5,461,7],[461,13,461,15],[453,1,453,5],[453,9,453,13],[454,1,454,5],[454,6,455,6],[454,9,454,13],[454,14,455,14],[455,1,455,5],[455,9,455,13],[440,5,440,6],[440,13,440,14],[441,5,441,6],[441,13,441,14],[445,2,447,2],[445,10,447,10],[444,5,444,7],[444,13,444,15],[436,1,436,5],[436,9,436,13],[437,1,437,5],[437,6,438,6],[437,9,437,13],[437,14,438,14],[438,1,438,5],[438,9,438,13],[422,5,422,6],[422,13,422,14],[423,5,423,6],[423,13,423,14],[427,2,429,2],[427,10,429,10],[426,5,426,7],[426,13,426,15],[418,1,418,5],[418,9,418,13],[419,1,419,5],[419,6,420,6],[419,9,419,13],[419,14,420,14],[420,1,420,5],[420,9,420,13],[405,5,405,6],[405,13,405,14],[406,5,406,6],[406,13,406,14],[410,2,412,2],[410,10,412,10],[409,5,409,7],[409,13,409,15],[401,1,401,5],[401,9,401,13],[402,1,402,5],[402,6,403,6],[402,9,402,13],[402,14,403,14],[403,1,403,5],[403,9,403,13],[388,5,388,6],[388,13,388,14],[389,5,389,6],[389,13,389,14],[393,2,395,2],[393,10,395,10],[392,5,392,7],[392,13,392,15],[384,1,384,5],[384,9,384,13],[385,1,385,5],[385,6,386,6],[385,9,385,13],[385,14,386,14],[386,1,386,5],[386,9,386,13],[371,5,371,6],[371,13,371,14],[372,5,372,6],[372,13,372,14],[376,2,378,2],[376,10,378,10],[375,5,375,7],[375,13,375,15],[367,1,367,5],[367,9,367,13],[368,1,368,5],[368,6,369,6],[368,9,368,13],[368,14,369,14],[369,1,369,5],[369,9,369,13],[354,5,354,6],[354,13,354,14],[355,5,355,6],[355,13,355,14],[359,2,361,2],[359,10,361,10],[358,5,358,7],[358,13,358,15],[350,1,350,5],[350,9,350,13],[351,1,351,5],[351,6,352,6],[351,9,351,13],[351,14,352,14],[352,1,352,5],[352,9,352,13],[337,5,337,6],[337,13,337,14],[338,5,338,6],[338,13,338,14],[342,2,344,2],[342,10,344,10],[341,5,341,7],[341,13,341,15],[333,1,333,5],[333,9,333,13],[334,1,334,5],[334,6,335,6],[334,9,334,13],[334,14,335,14],[335,1,335,5],[335,9,335,13],[320,5,320,6],[320,13,320,14],[321,5,321,6],[321,13,321,14],[325,2,327,2],[325,10,327,10],[324,5,324,7],[324,13,324,15],[316,1,316,5],[316,9,316,13],[317,1,317,5],[317,6,318,6],[317,9,317,13],[317,14,318,14],[318,1,318,5],[318,9,318,13],[303,5,303,6],[303,13,303,14],[304,5,304,6],[304,13,304,14],[308,2,310,2],[308,10,310,10],[307,5,307,7],[307,13,307,15],[299,1,299,5],[299,9,299,13],[300,1,300,5],[300,6,301,6],[300,9,300,13],[300,14,301,14],[301,1,301,5],[301,9,301,13],[286,5,286,6],[286,13,286,14],[287,5,287,6],[287,13,287,14],[291,2,293,2],[291,10,293,10],[290,5,290,7],[290,13,290,15],[282,1,282,5],[282,9,282,13],[283,1,283,5],[283,6,284,6],[283,9,283,13],[283,14,284,14],[284,1,284,5],[284,9,284,13],[269,5,269,6],[269,13,269,14],[270,5,270,6],[270,13,270,14],[274,2,276,2],[274,10,276,10],[273,5,273,7],[273,13,273,15],[265,1,265,5],[265,9,265,13],[266,1,266,5],[266,6,267,6],[266,9,266,13],[266,14,267,14],[267,1,267,5],[267,9,267,13],[252,5,252,6],[252,13,252,14],[253,5,253,6],[253,13,253,14],[257,2,259,2],[257,10,259,10],[256,5,256,7],[256,13,256,15],[248,1,248,5],[248,9,248,13],[249,1,249,5],[249,6,250,6],[249,9,249,13],[249,14,250,14],[250,1,250,5],[250,9,250,13],[235,5,235,6],[235,13,235,14],[236,5,236,6],[236,13,236,14],[240,2,242,2],[240,10,242,10],[239,5,239,7],[239,13,239,15],[231,1,231,5],[231,9,231,13],[232,1,232,5],[232,6,233,6],[232,9,232,13],[232,14,233,14],[233,1,233,5],[233,9,233,13],[218,5,218,6],[218,13,218,14],[219,5,219,6],[219,13,219,14],[223,2,225,2],[223,10,225,10],[222,5,222,7],[222,13,222,15],[214,1,214,5],[214,9,214,13],[215,1,215,5],[215,6,216,6],[215,9,215,13],[215,14,216,14],[216,1,216,5],[216,9,216,13],[201,5,201,6],[201,13,201,14],[202,5,202,6],[202,13,202,14],[206,2,208,2],[206,10,208,10],[205,5,205,7],[205,13,205,15],[197,1,197,5],[197,9,197,13],[198,1,198,5],[198,6,199,6],[198,9,198,13],[198,14,199,14],[199,1,199,5],[199,9,199,13],[184,5,184,6],[184,13,184,14],[185,5,185,6],[185,13,185,14],[189,2,191,2],[189,10,191,10],[180,1,180,5],[180,9,180,13],[181,1,181,5],[181,6,182,6],[181,9,181,13],[181,14,182,14],[182,1,182,5],[182,9,182,13],[163,5,163,6],[163,13,163,14],[164,5,164,6],[164,13,164,14],[168,2,170,2],[168,10,170,10],[167,5,167,7],[167,13,167,15],[159,1,159,5],[159,9,159,13],[160,1,160,5],[160,6,161,6],[160,9,160,13],[160,14,161,14],[161,1,161,5],[161,9,161,13],[146,5,146,6],[146,13,146,14],[147,5,147,6],[147,13,147,14],[151,2,153,2],[151,10,153,10],[150,5,150,7],[150,13,150,15],[142,1,142,5],[142,9,142,13],[143,1,143,5],[143,6,144,6],[143,9,143,13],[143,14,144,14],[144,1,144,5],[144,9,144,13],[129,5,129,6],[129,13,129,14],[130,5,130,6],[130,13,130,14],[134,2,136,2],[134,10,136,10],[133,5,133,7],[133,13,133,15],[125,1,125,5],[125,9,125,13],[126,1,126,5],[126,6,127,6],[126,9,126,13],[126,14,127,14],[127,1,127,5],[127,9,127,13],[112,5,112,6],[112,13,112,14],[113,5,113,6],[113,13,113,14],[117,2,119,2],[117,10,119,10],[108,1,108,5],[108,9,108,13],[109,1,109,5],[109,6,110,6],[109,9,109,13],[109,14,110,14],[110,1,110,5],[110,9,110,13],[95,5,95,6],[95,13,95,14],[96,5,96,6],[96,13,96,14],[100,2,102,2],[100,10,102,10],[99,5,99,7],[99,13,99,15],[91,1,91,5],[91,9,91,13],[92,1,92,5],[92,6,93,6],[92,9,92,13],[92,14,93,14],[93,1,93,5],[93,9,93,13],[79,2,81,2],[79,10,81,10],[70,1,70,5],[70,9,70,13],[71,1,71,5],[71,6,72,6],[71,9,71,13],[71,14,72,14],[72,1,72,5],[72,9,72,13],[78,5,78,7],[78,13,78,15],[74,5,74,6],[74,13,74,14],[75,5,75,6],[75,13,75,14],[43,5,43,6],[42,13,42,14],[43,13,43,14],[62,2,64,2],[62,10,64,10],[53,1,53,5],[53,9,53,13],[54,1,54,5],[54,6,55,6],[54,9,54,13],[54,14,55,14],[55,1,55,5],[55,9,55,13],[61,5,61,7],[61,13,61,15],[57,5,57,6],[57,13,57,14],[58,5,58,6],[58,13,58,14],[59,5,59,6],[60,5,60,6],[59,13,59,14],[60,13,60,14],[10,13,10,15],[27,5,27,7],[27,13,27,15],[23,5,23,6],[23,13,23,14],[24,5,24,6],[11,2,13,2],[45,2,47,2],[45,10,47,10],[36,1,36,5],[36,9,36,13],[37,1,37,5],[37,6,38,6],[37,9,37,13],[37,14,38,14],[38,1,38,5],[38,9,38,13],[44,5,44,7],[44,13,44,15],[40,5,40,6],[40,13,40,14],[41,5,41,6],[41,13,41,14],[42,5,42,6],[28,2,30,2],[28,10,30,10],[19,9,19,13],[20,1,20,5],[20,6,21,6],[20,9,20,13],[20,14,21,14],[21,1,21,5],[21,9,21,13],[8,5,8,6],[9,5,9,6],[8,13,8,14],[9,13,9,14],[25,5,25,6],[26,5,26,6],[25,13,25,14],[26,13,26,14],[2,1,2,5],[3,1,3,5],[4,1,4,5],[3,6,4,6],[19,1,19,5],[2,9,2,13],[3,9,3,13],[4,9,4,13],[11,10,13,10],[3,14,4,14],[6,5,6,6],[7,5,7,6],[6,13,6,14],[7,13,7,14],[10,5,10,7],[24,13,24,14]]}
[]
[]
[null,{"$f":"'DATA KARTU'!$D$1&\" \"&'DATA KARTU'!H1","v":"KARTU TANDA PESERTA UAMNU"},null,null,null,null,"RUANG",null,null,{"$f":"'DATA KARTU'!$D$1&\" \"&'DATA KARTU'!H1","v":"KARTU TANDA PESERTA UAMNU"},null,null,null,null,"RUANG"]
[null,{"$f":"'DATA KARTU'!$D$2&\" \"&'DATA KARTU'!H2","v":"TAHUN PELAJARAN 2020/2021"},null,null,null,null,{"$f":"VLOOKUP($R$5,'DATA KARTU'!$A$9:$N$77,2)","v":"1C"},null,null,{"$f":"'DATA KARTU'!$D$2&\" \"&'DATA KARTU'!H2","v":"TAHUN PELAJARAN 2020/2021"},null,null,null,null,{"$f":"VLOOKUP($R$6,'DATA KARTU'!$A$9:$N$77,2)","v":"1C"}]
[null,{"$f":"'DATA KARTU'!$D$3","v":"MIS NURUL ISLAM LABRUK KIDUL"},null,null,null,null,null,null,null,{"$f":"'DATA KARTU'!$D$3","v":"MIS NURUL ISLAM LABRUK KIDUL"},null,null,null,null,null,null,null,57]
[null,null,null,null,null,null,null,null,null,null,null,null,null,null,null,null,null,{"$f":"R5+1","v":58}]
[null,null,"Nama Peserta",null,":",{"$f":"VLOOKUP($R$5,'DATA KARTU'!$A$9:$N$77,4)","v":"MUHAMMAD MAULANA PAHLEVY"},null,null,null,null,"Nama Peserta",null,":",{"$f":"VLOOKUP($R$6,'DATA KARTU'!$A$9:$N$77,4)","v":"RADITYA NIRWANSYAH"},null,null,null,{"$f":"R6+1","v":59}]
[null,null,"Tgl dan Tempat Lahir",null,":",{"$f":"VLOOKUP($R$5,'DATA KARTU'!$A$9:$N$77,6)&\", \"&TEXT(VLOOKUP($R$5,'DATA KARTU'!$A$9:$N$77,7),\"dd-mm-yyyy\")","v":"Lumajang, 08-04-2009"},null,null,null,null,"Tgl dan Tempat Lahir",null,":",{"$f":"VLOOKUP($R$6,'DATA KARTU'!$A$9:$N$77,6)&\", \"&TEXT(VLOOKUP($R$6,'DATA KARTU'!$A$9:$N$77,7),\"dd-mm-yyyy\")","v":"Lumajang, 01-10-2008"},null,null,null,60]
[null,null,"username",null,":",{"$f":"\"60715417.\"&VLOOKUP($R$5,'DATA KARTU'!$A$9:$N$77,13)","v":"60715417.6B25"},null,null,null,null,"username",null,":",{"$f":"\"60715417.\"&VLOOKUP($R$6,'DATA KARTU'!$A$9:$N$77,13)","v":"60715417.6B26"},null,null,null,61]
[null,null,"password",null,":",{"$f":"VLOOKUP($R$5,'DATA KARTU'!$A$9:$N$77,14)","v":4420},null,null,null,null,"password",null,":",{"$f":"VLOOKUP($R$6,'DATA KARTU'!$A$9:$N$77,14)","v":4459},null,null,null,62]
[null,null,null,null,null,{"$f":"'DATA KARTU'!$D$5&\", \"&TEXT('DATA KARTU'!$D$6,\"dd mmmm yyyy\")","v":"Labruk Kidul, 22 Januari 2021"},null,null,null,null,null,null,null,{"$f":"'DATA KARTU'!$D$5&\", \"&TEXT('DATA KARTU'!$D$6,\"dd mmmm yyyy\")","v":"Labruk Kidul, 22 Januari 2021"},null,null,null,63]
[null,null,"Pas Photo 3x3",null,null,"Kepala Madrasah",null,null,null,null,"Pas Photo 3x3",null,null,"Kepala Madrasah",null,null,null,64]
[]
[]
[null,null,null,null,null,{"$f":"'DATA KARTU'!$D$4","v":"SAHRONI,S.Pd.I"},null,null,null,null,null,null,null,{"$f":"'DATA KARTU'!$D$4","v":"SAHRONI,S.Pd.I"}]
[]
[]
[]
[]
[null,{"$f":"'DATA KARTU'!$D$1&\" \"&'DATA KARTU'!H1","v":"KARTU TANDA PESERTA UAMNU"},null,null,null,null,"RUANG",null,null,{"$f":"'DATA KARTU'!$D$1&\" \"&'DATA KARTU'!H1","v":"KARTU TANDA PESERTA UAMNU"},null,null,null,null,"RUANG"]
[null,{"$f":"'DATA KARTU'!$D$2&\" \"&'DATA KARTU'!H2","v":"TAHUN PELAJARAN 2020/2021"},null,null,null,null,{"$f":"VLOOKUP($R$7,'DATA KARTU'!$A$9:$N$77,2)","v":"1C"},null,null,{"$f":"'DATA KARTU'!$D$2&\" \"&'DATA KARTU'!H2","v":"TAHUN PELAJARAN 2020/2021"},null,null,null,null,{"$f":"VLOOKUP($R$8,'DATA KARTU'!$A$9:$N$77,2)","v":"1C"}]
[null,{"$f":"'DATA KARTU'!$D$3","v":"MIS NURUL ISLAM LABRUK KIDUL"},null,null,null,null,null,null,null,{"$f":"'DATA KARTU'!$D$3","v":"MIS NURUL ISLAM LABRUK KIDUL"}]
[]
[null,null,"Nama Peserta",null,":",{"$f":"VLOOKUP($R$7,'DATA KARTU'!$A$9:$N$77,4)","v":"REVINA SRI UTARI"},null,null,null,null,"Nama Peserta",null,":",{"$f":"VLOOKUP($R$8,'DATA KARTU'!$A$9:$N$77,4)","v":"REYHAN DWI ANDIKA"}]
[null,null,"Tgl dan Tempat Lahir",null,":",{"$f":"VLOOKUP($R$7,'DATA KARTU'!$A$9:$N$77,6)&\", \"&TEXT(VLOOKUP($R$7,'DATA KARTU'!$A$9:$N$77,7),\"dd-mm-yyyy\")","v":"Lumajang, 19-05-2008"},null,null,null,null,"Tgl dan Tempat Lahir",null,":",{"$f":"VLOOKUP($R$8,'DATA KARTU'!$A$9:$N$77,6)&\", \"&TEXT(VLOOKUP($R$8,'DATA KARTU'!$A$9:$N$77,7),\"dd-mm-yyyy\")","v":"Lumajang, 05-07-2008"}]
[null,null,"username",null,":",{"$f":"\"60715417.\"&VLOOKUP($R$7,'DATA KARTU'!$A$9:$N$77,13)","v":"60715417.6B27"},null,null,null,null,"username",null,":",{"$f":"\"60715417.\"&VLOOKUP($R$8,'DATA KARTU'!$A$9:$N$77,13)","v":"60715417.6B28"}]
[null,null,"password",null,":",{"$f":"VLOOKUP($R$7,'DATA KARTU'!$A$9:$N$77,14)","v":4460},null,null,null,null,"password",null,":",{"$f":"VLOOKUP($R$8,'DATA KARTU'!$A$9:$N$77,14)","v":4425}]
[null,null,null,null,null,{"$f":"'DATA KARTU'!$D$5&\", \"&TEXT('DATA KARTU'!$D$6,\"dd mmmm yyyy\")","v":"Labruk Kidul, 22 Januari 2021"},null,null,null,null,null,null,null,{"$f":"'DATA KARTU'!$D$5&\", \"&TEXT('DATA KARTU'!$D$6,\"dd mmmm yyyy\")","v":"Labruk Kidul, 22 Januari 2021"}]
[null,null,"Pas Photo 3x3",null,null,"Kepala Madrasah",null,null,null,null,"Pas Photo 3x3",null,null,"Kepala Madrasah"]
[]
[]
[null,null,null,null,null,{"$f":"'DATA KARTU'!$D$4","v":"SAHRONI,S.Pd.I"},null,null,null,null,null,null,null,{"$f":"'DATA KARTU'!$D$4","v":"SAHRONI,S.Pd.I"}]
[]
[]
[]
[]
[null,{"$f":"'DATA KARTU'!$D$1&\" \"&'DATA KARTU'!H1","v":"KARTU TANDA PESERTA UAMNU"},null,null,null,null,"RUANG",null,null,{"$f":"'DATA KARTU'!$D$1&\" \"&'DATA KARTU'!H1","v":"KARTU TANDA PESERTA UAMNU"},null,null,null,null,"RUANG"]
[null,{"$f":"'DATA KARTU'!$D$2&\" \"&'DATA KARTU'!H2","v":"TAHUN PELAJARAN 2020/2021"},null,null,null,null,{"$f":"VLOOKUP($R$9,'DATA KARTU'!$A$9:$N$77,2)","v":"1D"},null,null,{"$f":"'DATA KARTU'!$D$2&\" \"&'DATA KARTU'!H2","v":"TAHUN PELAJARAN 2020/2021"},null,null,null,null,{"$f":"VLOOKUP($R$10,'DATA KARTU'!$A$9:$N$77,2)","v":"1D"}]
[null,{"$f":"'DATA KARTU'!$D$3","v":"MIS NURUL ISLAM LABRUK KIDUL"},null,null,null,null,{"$f":"VLOOKUP($R$9,'DATA KARTU'!$A$9:$N$77,4)","v":"RISKA LAURA TRIA OCTAVIA"},null,null,{"$f":"'DATA KARTU'!$D$3","v":"MIS NURUL ISLAM LABRUK KIDUL"},null,null,null,null,{"$f":"VLOOKUP($R$10,'DATA KARTU'!$A$9:$N$77,4)","v":"ROHMADONA DWI SAFITRI"}]
[]
[null,null,"Nama Peserta",null,":",{"$f":"VLOOKUP($R$9,'DATA KARTU'!$A$9:$N$77,4)","v":"RISKA LAURA TRIA OCTAVIA"},null,null,null,null,"Nama Peserta",null,":",{"$f":"VLOOKUP($R$10,'DATA KARTU'!$A$9:$N$77,4)","v":"ROHMADONA DWI SAFITRI"}]
[null,null,"Tgl dan Tempat Lahir",null,":",{"$f":"VLOOKUP($R$9,'DATA KARTU'!$A$9:$N$77,6)&\", \"&TEXT(VLOOKUP($R$9,'DATA KARTU'!$A$9:$N$77,7),\"dd-mm-yyyy\")","v":"Lumajang, 27-10-2008"},null,null,null,null,"Tgl dan Tempat Lahir",null,":",{"$f":"VLOOKUP($R$10,'DATA KARTU'!$A$9:$N$77,6)&\", \"&TEXT(VLOOKUP($R$10,'DATA KARTU'!$A$9:$N$77,7),\"dd-mm-yyyy\")","v":"Lumajang, 14-09-2008"}]
[null,null,"username",null,":",{"$f":"\"60715417.\"&VLOOKUP($R$9,'DATA KARTU'!$A$9:$N$77,13)","v":"60715417.6B29"},null,null,null,null,"username",null,":",{"$f":"\"60715417.\"&VLOOKUP($R$10,'DATA KARTU'!$A$9:$N$77,13)","v":"60715417.6B30"}]
[null,null,"password",null,":",{"$f":"VLOOKUP($R$9,'DATA KARTU'!$A$9:$N$77,14)","v":4461},null,null,null,null,"password",null,":",{"$f":"VLOOKUP($R$10,'DATA KARTU'!$A$9:$N$77,14)","v":4427}]
[null,null,null,null,null,{"$f":"'DATA KARTU'!$D$5&\", \"&TEXT('DATA KARTU'!$D$6,\"dd mmmm yyyy\")","v":"Labruk Kidul, 22 Januari 2021"},null,null,null,null,null,null,null,{"$f":"'DATA KARTU'!$D$5&\", \"&TEXT('DATA KARTU'!$D$6,\"dd mmmm yyyy\")","v":"Labruk Kidul, 22 Januari 2021"}]
[null,null,"Pas Photo 3x3",null,null,"Kepala Madrasah",null,null,null,null,"Pas Photo 3x3",null,null,"Kepala Madrasah"]
[]
[]
[null,null,null,null,null,{"$f":"'DATA KARTU'!$D$4","v":"SAHRONI,S.Pd.I"},null,null,null,null,null,null,null,{"$f":"'DATA KARTU'!$D$4","v":"SAHRONI,S.Pd.I"}]
[]
[]
[]
[]
[null,{"$f":"'DATA KARTU'!$D$1&\" \"&'DATA KARTU'!H1","v":"KARTU TANDA PESERTA UAMNU"},null,null,null,null,"RUANG",null,null,{"$f":"'DATA KARTU'!$D$1&\" \"&'DATA KARTU'!H1","v":"KARTU TANDA PESERTA UAMNU"},null,null,null,null,"RUANG"]
[null,{"$f":"'DATA KARTU'!$D$2&\" \"&'DATA KARTU'!H2","v":"TAHUN PELAJARAN 2020/2021"},null,null,null,null,{"$f":"VLOOKUP($R$11,'DATA KARTU'!$A$9:$N$77,2)","v":"1D"},null,null,{"$f":"'DATA KARTU'!$D$2&\" \"&'DATA KARTU'!H2","v":"TAHUN PELAJARAN 2020/2021"},null,null,null,null,{"$f":"VLOOKUP($R$12,'DATA KARTU'!$A$9:$N$77,2)","v":"1D"}]
[null,{"$f":"'DATA KARTU'!$D$3","v":"MIS NURUL ISLAM LABRUK KIDUL"},null,null,null,null,{"$f":"VLOOKUP($R$11,'DATA KARTU'!$A$9:$N$77,4)","v":"SALMAN ALFARIZI"},null,null,{"$f":"'DATA KARTU'!$D$3","v":"MIS NURUL ISLAM LABRUK KIDUL"},null,null,null,null,{"$f":"VLOOKUP($R$12,'DATA KARTU'!$A$9:$N$77,4)","v":"TAUFIQ KURROHMAN"}]
[]
[null,null,"Nama Peserta",null,":",{"$f":"VLOOKUP($R$11,'DATA KARTU'!$A$9:$N$77,4)","v":"SALMAN ALFARIZI"},null,null,null,null,"Nama Peserta",null,":",{"$f":"VLOOKUP($R$12,'DATA KARTU'!$A$9:$N$77,4)","v":"TAUFIQ KURROHMAN"}]
[null,null,"Tgl dan Tempat Lahir",null,":",{"$f":"VLOOKUP($R$11,'DATA KARTU'!$A$9:$N$77,6)&\", \"&TEXT(VLOOKUP($R$11,'DATA KARTU'!$A$9:$N$77,7),\"dd-mm-yyyy\")","v":"Lumajang, 16-04-2008"},null,null,null,null,"Tgl dan Tempat Lahir",null,":",{"$f":"VLOOKUP($R$12,'DATA KARTU'!$A$9:$N$77,6)&\", \"&TEXT(VLOOKUP($R$12,'DATA KARTU'!$A$9:$N$77,7),\"dd-mm-yyyy\")","v":"Lumajang, 25-04-2008"}]
[null,null,"username",null,":",{"$f":"\"60715417.\"&VLOOKUP($R$11,'DATA KARTU'!$A$9:$N$77,13)","v":"60715417.6B31"},null,null,null,null,"username",null,":",{"$f":"\"60715417.\"&VLOOKUP($R$12,'DATA KARTU'!$A$9:$N$77,13)","v":"60715417.6B32"}]
[null,null,"password",null,":",{"$f":"VLOOKUP($R$11,'DATA KARTU'!$A$9:$N$77,14)","v":4462},null,null,null,null,"password",null,":",{"$f":"VLOOKUP($R$12,'DATA KARTU'!$A$9:$N$77,14)","v":4463}]
[null,null,null,null,null,{"$f":"'DATA KARTU'!$D$5&\", \"&TEXT('DATA KARTU'!$D$6,\"dd mmmm yyyy\")","v":"Labruk Kidul, 22 Januari 2021"},null,null,null,null,null,null,null,{"$f":"'DATA KARTU'!$D$5&\", \"&TEXT('DATA KARTU'!$D$6,\"dd mmmm yyyy\")","v":"Labruk Kidul, 22 Januari 2021"}]
[null,null,"Pas Photo 3x3",null,null,"Kepala Madrasah",null,null,null,null,"Pas Photo 3x3",null,null,"Kepala Madrasah"]
[]
[]
[null,null,null,null,null,{"$f":"'DATA KARTU'!$D$4","v":"SAHRONI,S.Pd.I"},null,null,null,null,null,null,null,{"$f":"'DATA KARTU'!$D$4","v":"SAHRONI,S.Pd.I"}]
[]
[]
[]
[]
[null,{"$f":"'DATA KARTU'!$D$1&\" \"&'DATA KARTU'!H1","v":"KARTU TANDA PESERTA UAMNU"},null,null,null,null,"RUANG",null,null,{"$f":"'DATA KARTU'!$D$1&\" \"&'DATA KARTU'!H1","v":"KARTU TANDA PESERTA UAMNU"},null,null,null,null,"RUANG"]
[null,{"$f":"'DATA KARTU'!$D$2&\" \"&'DATA KARTU'!H2","v":"TAHUN PELAJARAN 2020/2021"},null,null,null,null,{"$f":"'DATA KARTU'!$B17","v":"1A"},null,null,{"$f":"'DATA KARTU'!$D$2&\" \"&'DATA KARTU'!H2","v":"TAHUN PELAJARAN 2020/2021"},null,null,null,null,{"$f":"'DATA KARTU'!$B18","v":"1A"}]
[null,{"$f":"'DATA KARTU'!$D$3","v":"MIS NURUL ISLAM LABRUK KIDUL"},null,null,null,null,null,null,null,{"$f":"'DATA KARTU'!$D$3","v":"MIS NURUL ISLAM LABRUK KIDUL"}]
[]
[null,null,"Nomor Peserta",null,":",{"$f":"'DATA KARTU'!$C17","v":"1-2021-009-8"},null,null,null,null,"Nomor Peserta",null,":",{"$f":"'DATA KARTU'!$C18","v":"1-2021-010-7"}]
[null,null,"Nama Peserta",null,":",{"$f":"'DATA KARTU'!$D17","v":"HANUM SYAIKHANATUL LAILI"},null,null,null,null,"Nama Peserta",null,":",{"$f":"'DATA KARTU'!$D18","v":"IQBAL ABDILLAH AZZAKY"}]
[null,null,"Tempat Tanggal Lahir",null,":",{"$f":"'DATA KARTU'!$F17&\", \"&TEXT('DATA KARTU'!$G17,\"dd mmmm yyyy\")","v":"Lumajang, 19 Juni 2008"},null,null,null,null,"Tempat Tanggal Lahir",null,":",{"$f":"'DATA KARTU'!$F18&\", \"&TEXT('DATA KARTU'!$G18,\"dd mmmm yyyy\")","v":"Lumajang, 07 Juli 2008"}]
[]
[null,null,null,null,null,{"$f":"'DATA KARTU'!$D$5&\", \"&TEXT('DATA KARTU'!$D$6,\"dd mmmm yyyy\")","v":"Labruk Kidul, 22 Januari 2021"},null,null,null,null,null,null,null,{"$f":"'DATA KARTU'!$D$5&\", \"&TEXT('DATA KARTU'!$D$6,\"dd mmmm yyyy\")","v":"Labruk Kidul, 22 Januari 2021"}]
[null,null,"Pas Photo 3x3",null,null,"Kepala Madrasah",null,null,null,null,"Pas Photo 3x3",null,null,"Kepala Madrasah"]
[]
[]
[null,null,null,null,null,{"$f":"'DATA KARTU'!$D$4","v":"SAHRONI,S.Pd.I"},null,null,null,null,null,null,null,{"$f":"'DATA KARTU'!$D$4","v":"SAHRONI,S.Pd.I"}]
[]
[]
[]
[]
[]
[]
[]
[]
[null,{"$f":"'DATA KARTU'!$D$1&\" \"&'DATA KARTU'!H1","v":"KARTU TANDA PESERTA UAMNU"},null,null,null,null,"RUANG",null,null,{"$f":"'DATA KARTU'!$D$1&\" \"&'DATA KARTU'!H1","v":"KARTU TANDA PESERTA UAMNU"},null,null,null,null,"RUANG"]
[null,{"$f":"'DATA KARTU'!$D$2&\" \"&'DATA KARTU'!H2","v":"TAHUN PELAJARAN 2020/2021"},null,null,null,null,{"$f":"'DATA KARTU'!$B19","v":"1A"},null,null,{"$f":"'DATA KARTU'!$D$2&\" \"&'DATA KARTU'!H2","v":"TAHUN PELAJARAN 2020/2021"},null,null,null,null,{"$f":"'DATA KARTU'!$B20","v":"1A"}]
[null,{"$f":"'DATA KARTU'!$D$3","v":"MIS NURUL ISLAM LABRUK KIDUL"},null,null,null,null,null,null,null,{"$f":"'DATA KARTU'!$D$3","v":"MIS NURUL ISLAM LABRUK KIDUL"}]
[]
[null,null,"Nomor Peserta",null,":",{"$f":"'DATA KARTU'!$C19","v":"1-2021-011-6"},null,null,null,null,"Nomor Peserta",null,":",{"$f":"'DATA KARTU'!$C20","v":"1-2021-012-5"}]
[null,null,"Nama Peserta",null,":",{"$f":"'DATA KARTU'!$D19","v":"IZZA NUR HIKMAH"},null,null,null,null,"Nama Peserta",null,":",{"$f":"'DATA KARTU'!$D20","v":"KHIKMATUL LAILIA SAPUTRI"}]
[null,null,"Tempat Tanggal Lahir",null,":",{"$f":"'DATA KARTU'!$F19&\", \"&TEXT('DATA KARTU'!$G19,\"dd mmmm yyyy\")","v":"Lumajang, 07 Januari 2009"},null,null,null,null,"Tempat Tanggal Lahir",null,":",{"$f":"'DATA KARTU'!$F20&\", \"&TEXT('DATA KARTU'!$G20,\"dd mmmm yyyy\")","v":"Lumajang, 05 April 2009"}]
[]
[null,null,null,null,null,{"$f":"'DATA KARTU'!$D$5&\", \"&TEXT('DATA KARTU'!$D$6,\"dd mmmm yyyy\")","v":"Labruk Kidul, 22 Januari 2021"},null,null,null,null,null,null,null,{"$f":"'DATA KARTU'!$D$5&\", \"&TEXT('DATA KARTU'!$D$6,\"dd mmmm yyyy\")","v":"Labruk Kidul, 22 Januari 2021"}]
[null,null,"Pas Photo 3x3",null,null,"Kepala Madrasah",null,null,null,null,"Pas Photo 3x3",null,null,"Kepala Madrasah"]
[]
[]
[null,null,null,null,null,{"$f":"'DATA KARTU'!$D$4","v":"SAHRONI,S.Pd.I"},null,null,null,null,null,null,null,{"$f":"'DATA KARTU'!$D$4","v":"SAHRONI,S.Pd.I"}]
[]
[]
[]
[]
[null,{"$f":"'DATA KARTU'!$D$1&\" \"&'DATA KARTU'!H1","v":"KARTU TANDA PESERTA UAMNU"},null,null,null,null,"RUANG",null,null,{"$f":"'DATA KARTU'!$D$1&\" \"&'DATA KARTU'!H1","v":"KARTU TANDA PESERTA UAMNU"},null,null,null,null,"RUANG"]
[null,{"$f":"'DATA KARTU'!$D$2&\" \"&'DATA KARTU'!H2","v":"TAHUN PELAJARAN 2020/2021"},null,null,null,null,{"$f":"'DATA KARTU'!$B21","v":"1A"},null,null,{"$f":"'DATA KARTU'!$D$2&\" \"&'DATA KARTU'!H2","v":"TAHUN PELAJARAN 2020/2021"},null,null,null,null,{"$f":"'DATA KARTU'!$B22","v":"1A"}]
[null,{"$f":"'DATA KARTU'!$D$3","v":"MIS NURUL ISLAM LABRUK KIDUL"},null,null,null,null,null,null,null,{"$f":"'DATA KARTU'!$D$3","v":"MIS NURUL ISLAM LABRUK KIDUL"}]
[]
[null,null,"Nomor Peserta",null,":",{"$f":"'DATA KARTU'!$C21","v":"1-2021-013-4"},null,null,null,null,"Nomor Peserta",null,":",{"$f":"'DATA KARTU'!$C22","v":"1-2021-014-3"}]
[null,null,"Nama Peserta",null,":",{"$f":"'DATA KARTU'!$D21","v":"MOCHAMAD AFLAH FAIRUZ"},null,null,null,null,"Nama Peserta",null,":",{"$f":"'DATA KARTU'!$D22","v":"MOHAMMAD RIZKI FIRMANSYAH"}]
[null,null,"Tempat Tanggal Lahir",null,":",{"$f":"'DATA KARTU'!$F21&\", \"&TEXT('DATA KARTU'!$G21,\"dd mmmm yyyy\")","v":"Lumajang, 20 Juli 2008"},null,null,null,null,"Tempat Tanggal Lahir",null,":",{"$f":"'DATA KARTU'!$F22&\", \"&TEXT('DATA KARTU'!$G22,\"dd mmmm yyyy\")","v":"Lumajang, 05 Oktober 2008"}]
[]
[null,null,null,null,null,{"$f":"'DATA KARTU'!$D$5&\",\"","v":"Labruk Kidul,"},{"$f":"'DATA KARTU'!$D$6","v":"2021-01-22"},null,null,null,null,null,null,{"$f":"'DATA KARTU'!$D$5&\",\"","v":"Labruk Kidul,"},{"$f":"'DATA KARTU'!$D$6","v":"2021-01-22"}]
[null,null,"Pas Photo 3x3",null,null,"Kepala Madrasah",null,null,null,null,"Pas Photo 3x3",null,null,"Kepala Madrasah"]
[]
[]
[null,null,null,null,null,{"$f":"'DATA KARTU'!$D$4","v":"SAHRONI,S.Pd.I"},null,null,null,null,null,null,null,{"$f":"'DATA KARTU'!$D$4","v":"SAHRONI,S.Pd.I"}]
[]
[]
[]
[]
[null,{"$f":"'DATA KARTU'!$D$1&\" \"&'DATA KARTU'!H1","v":"KARTU TANDA PESERTA UAMNU"},null,null,null,null,"RUANG",null,null,{"$f":"'DATA KARTU'!$D$1","v":"KARTU TANDA PESERTA"},null,null,null,null,"RUANG"]
[null,{"$f":"'DATA KARTU'!$D$2&\" \"&'DATA KARTU'!H2","v":"TAHUN PELAJARAN 2020/2021"},null,null,null,null,{"$f":"'DATA KARTU'!$B23","v":"1A"},null,null,{"$f":"'DATA KARTU'!$D$2&\" \"&'DATA KARTU'!H2","v":"TAHUN PELAJARAN 2020/2021"},null,null,null,null,{"$f":"'DATA KARTU'!$B24","v":"1A"}]
[null,{"$f":"'DATA KARTU'!$D$3","v":"MIS NURUL ISLAM LABRUK KIDUL"},null,null,null,null,null,null,null,{"$f":"'DATA KARTU'!$D$3","v":"MIS NURUL ISLAM LABRUK KIDUL"}]
[]
[null,null,"Nomor Peserta",null,":",{"$f":"'DATA KARTU'!$C23","v":"1-2021-015-2"},null,null,null,null,"Nomor Peserta",null,":",{"$f":"'DATA KARTU'!$C24","v":"1-2021-016-9"}]
[null,null,"Nama Peserta",null,":",{"$f":"'DATA KARTU'!$D23","v":"MUFIDATUL DWI ILMIYAH"},null,null,null,null,"Nama Peserta",null,":",{"$f":"'DATA KARTU'!$D24","v":"MUHAMMAD AULYA RAHMAN"}]
[null,null,"Tempat Tanggal Lahir",null,":",{"$f":"'DATA KARTU'!$F23&\", \"&TEXT('DATA KARTU'!$G23,\"dd mmmm yyyy\")","v":"Lumajang, 20 Agustus 2008"},null,null,null,null,"Tempat Tanggal Lahir",null,":",{"$f":"'DATA KARTU'!$F24&\", \"&TEXT('DATA KARTU'!$G24,\"dd mmmm yyyy\")","v":"Lumajang, 01 Juni 2008"}]
[]
[null,null,null,null,null,{"$f":"'DATA KARTU'!$D$5&\", \"&TEXT('DATA KARTU'!$D$6,\"dd mmmm yyyy\")","v":"Labruk Kidul, 22 Januari 2021"},null,null,null,null,null,null,null,{"$f":"'DATA KARTU'!$D$5&\", \"&TEXT('DATA KARTU'!$D$6,\"dd mmmm yyyy\")","v":"Labruk Kidul, 22 Januari 2021"}]
[null,null,"Pas Photo 3x3",null,null,"Kepala Madrasah",null,null,null,null,"Pas Photo 3x3",null,null,"Kepala Madrasah"]
[]
[]
[null,null,null,null,null,{"$f":"'DATA KARTU'!$D$4","v":"SAHRONI,S.Pd.I"},null,null,null,null,null,null,null,{"$f":"'DATA KARTU'!$D$4","v":"SAHRONI,S.Pd.I"}]
[]
[]
[]
[]
[null,{"$f":"'DATA KARTU'!$D$1&\" \"&'DATA KARTU'!H1","v":"KARTU TANDA PESERTA UAMNU"},null,null,null,null,"RUANG",null,null,{"$f":"'DATA KARTU'!$D$1&\" \"&'DATA KARTU'!H1","v":"KARTU TANDA PESERTA UAMNU"},null,null,null,null,"RUANG"]
[null,{"$f":"'DATA KARTU'!$D$2&\" \"&'DATA KARTU'!H2","v":"TAHUN PELAJARAN 2020/2021"},null,null,null,null,{"$f":"'DATA KARTU'!$B25","v":"1A"},null,null,{"$f":"'DATA KARTU'!$D$2&\" \"&'DATA KARTU'!H2","v":"TAHUN PELAJARAN 2020/2021"},null,null,null,null,{"$f":"'DATA KARTU'!$B26","v":"1A"}]
[null,{"$f":"'DATA KARTU'!$D$3","v":"MIS NURUL ISLAM LABRUK KIDUL"},null,null,null,null,null,null,null,{"$f":"'DATA KARTU'!$D$3","v":"MIS NURUL ISLAM LABRUK KIDUL"}]
[]
[null,null,"Nomor Peserta",null,":",{"$f":"'DATA KARTU'!$C25","v":"1-2021-017-8"},null,null,null,null,"Nomor Peserta",null,":",{"$f":"'DATA KARTU'!$C26","v":"1-2021-018-7"}]
[null,null,"Nama Peserta",null,":",{"$f":"'DATA KARTU'!$D25","v":"MUHAMMAD AZKA MAHBUBY"},null,null,null,null,"Nama Peserta",null,":",{"$f":"'DATA KARTU'!$D26","v":"MUHAMMAD NUFRI PRATAMA WIJAYA"}]
[null,null,"Tempat Tanggal Lahir",null,":",{"$f":"'DATA KARTU'!$F25&\", \"&TEXT('DATA KARTU'!$G25,\"dd mmmm yyyy\")","v":"Lumajang, 18 Mei 2008"},null,null,null,null,"Tempat Tanggal Lahir",null,":",{"$f":"'DATA KARTU'!$F26&\", \"&TEXT('DATA KARTU'!$G26,\"dd mmmm yyyy\")","v":"Lumajang, 03 Oktober 2008"}]
[]
[null,null,null,null,null,{"$f":"'DATA KARTU'!$D$5&\", \"&TEXT('DATA KARTU'!$D$6,\"dd mmmm yyyy\")","v":"Labruk Kidul, 22 Januari 2021"},null,null,null,null,null,null,null,{"$f":"'DATA KARTU'!$D$5&\", \"&TEXT('DATA KARTU'!$D$6,\"dd mmmm yyyy\")","v":"Labruk Kidul, 22 Januari 2021"}]
[null,null,"Pas Photo 3x3",null,null,"Kepala Madrasah",null,null,null,null,"Pas Photo 3x3",null,null,"Kepala Madrasah"]
[]
[]
[null,null,null,null,null,{"$f":"'DATA KARTU'!$D$4","v":"SAHRONI,S.Pd.I"},null,null,null,null,null,null,null,{"$f":"'DATA KARTU'!$D$4","v":"SAHRONI,S.Pd.I"}]
[]
[]
[]
[]
[null,{"$f":"'DATA KARTU'!$D$1&\" \"&'DATA KARTU'!H1","v":"KARTU TANDA PESERTA UAMNU"},null,null,null,null,"RUANG",null,null,{"$f":"'DATA KARTU'!$D$1&\" \"&'DATA KARTU'!H1","v":"KARTU TANDA PESERTA UAMNU"},null,null,null,null,"RUANG"]
[null,{"$f":"'DATA KARTU'!$D$2&\" \"&'DATA KARTU'!H2","v":"TAHUN PELAJARAN 2020/2021"},null,null,null,null,{"$f":"'DATA KARTU'!$B$27","v":"1A"},null,null,{"$f":"'DATA KARTU'!$D$2&\" \"&'DATA KARTU'!H2","v":"TAHUN PELAJARAN 2020/2021"},null,null,null,null,{"$f":"'DATA KARTU'!$B$28","v":"1A"}]
[null,{"$f":"'DATA KARTU'!$D$3","v":"MIS NURUL ISLAM LABRUK KIDUL"},null,null,null,null,null,null,null,{"$f":"'DATA KARTU'!$D$3","v":"MIS NURUL ISLAM LABRUK KIDUL"}]
[]
[null,null,"Nomor Peserta",null,":",{"$f":"'DATA KARTU'!$C27","v":"1-2021-019-6"},null,null,null,null,"Nomor Peserta",null,":",{"$f":"'DATA KARTU'!$C28","v":"1-2021-020-5"}]
[null,null,"Nama Peserta",null,":",{"$f":"'DATA KARTU'!$D27","v":"MUKHAMAD ALFINO EKA PRIBADI"},null,null,null,null,"Nama Peserta",null,":",{"$f":"'DATA KARTU'!$D28","v":"NABILA EKA ARIYANTI"}]
[null,null,"Tempat Tanggal Lahir",null,":",{"$f":"'DATA KARTU'!$F27&\", \"&TEXT('DATA KARTU'!$G27,\"dd mmmm yyyy\")","v":"Lumajang, 15 Juli 2008"},null,null,null,null,"Tempat Tanggal Lahir",null,":",{"$f":"'DATA KARTU'!$F28&\", \"&TEXT('DATA KARTU'!$G28,\"dd mmmm yyyy\")","v":"Lumajang, 15 Mei 2008"}]
[]
[null,null,null,null,null,{"$f":"'DATA KARTU'!$D$5&\", \"&TEXT('DATA KARTU'!$D$6,\"dd mmmm yyyy\")","v":"Labruk Kidul, 22 Januari 2021"},null,null,null,null,null,null,null,{"$f":"'DATA KARTU'!$D$5&\", \"&TEXT('DATA KARTU'!$D$6,\"dd mmmm yyyy\")","v":"Labruk Kidul, 22 Januari 2021"}]
[null,null,"Pas Photo 3x3",null,null,"Kepala Madrasah",null,null,null,null,"Pas Photo 3x3",null,null,"Kepala Madrasah"]
[]
[]
[null,null,null,null,null,{"$f":"'DATA KARTU'!$D$4","v":"SAHRONI,S.Pd.I"},null,null,null,null,null,null,null,{"$f":"'DATA KARTU'!$D$4","v":"SAHRONI,S.Pd.I"}]
[]
[]
[]
[]
[]
[]
[]
[]
[null,{"$f":"'DATA KARTU'!$D$1&\" \"&'DATA KARTU'!H1","v":"KARTU TANDA PESERTA UAMNU"},null,null,null,null,"RUANG",null,null,{"$f":"'DATA KARTU'!$D$1&\" \"&'DATA KARTU'!H1","v":"KARTU TANDA PESERTA UAMNU"},null,null,null,null,"RUANG"]
[null,{"$f":"'DATA KARTU'!$D$2&\" \"&'DATA KARTU'!H2","v":"TAHUN PELAJARAN 2020/2021"},null,null,null,null,{"$f":"'DATA KARTU'!$B$29","v":"1B"},null,null,{"$f":"'DATA KARTU'!$D$2&\" \"&'DATA KARTU'!H2","v":"TAHUN PELAJARAN 2020/2021"},null,null,null,null,{"$f":"'DATA KARTU'!$B30","v":"1B"}]
[null,{"$f":"'DATA KARTU'!$D$3","v":"MIS NURUL ISLAM LABRUK KIDUL"},null,null,null,null,null,null,null,{"$f":"'DATA KARTU'!$D$3","v":"MIS NURUL ISLAM LABRUK KIDUL"}]
[]
[null,null,"Nomor Peserta",null,":",{"$f":"'DATA KARTU'!$C29","v":"1-2021-021-4"},null,null,null,null,"Nomor Peserta",null,":",{"$f":"'DATA KARTU'!$C30","v":"1-2021-022-3"}]
[null,null,"Nama Peserta",null,":",{"$f":"'DATA KARTU'!$D29","v":"NABILA PUTRI ZAKIANADA"},null,null,null,null,"Nama Peserta",null,":",{"$f":"'DATA KARTU'!$D30","v":"NANDHITA AULIA NUGROHO"}]
[null,null,"Tempat Tanggal Lahir",null,":",{"$f":"'DATA KARTU'!$F29&\", \"&TEXT('DATA KARTU'!$G29,\"dd mmmm yyyy\")","v":"Lumajang, 30 Maret 2009"},null,null,null,null,"Tempat Tanggal Lahir",null,":",{"$f":"'DATA KARTU'!$F30&\", \"&TEXT('DATA KARTU'!$G30,\"dd mmmm yyyy\")","v":"Lumajang, 29 Maret 2008"}]
[]
[null,null,null,null,null,{"$f":"'DATA KARTU'!$D$5&\",\"","v":"Labruk Kidul,"},{"$f":"'DATA KARTU'!$D$6","v":"2021-01-22"},null,null,null,null,null,null,{"$f":"'DATA KARTU'!$D$5&\",\"","v":"Labruk Kidul,"},{"$f":"'DATA KARTU'!$D$6","v":"2021-01-22"}]
[null,null,"Pas Photo 3x3",null,null,"Kepala Madrasah",null,null,null,null,"Pas Photo 3x3",null,null,"Kepala Madrasah"]
[]
[]
[null,null,null,null,null,{"$f":"'DATA KARTU'!$D$4","v":"SAHRONI,S.Pd.I"},null,null,null,null,null,null,null,{"$f":"'DATA KARTU'!$D$4","v":"SAHRONI,S.Pd.I"}]
[]
[]
[]
[]
[null,{"$f":"'DATA KARTU'!$D$1&\" \"&'DATA KARTU'!H1","v":"KARTU TANDA PESERTA UAMNU"},null,null,null,null,"RUANG",null,null,{"$f":"'DATA KARTU'!$D$1&\" \"&'DATA KARTU'!H1","v":"KARTU TANDA PESERTA UAMNU"},null,null,null,null,"RUANG"]
[null,{"$f":"'DATA KARTU'!$D$2&\" \"&'DATA KARTU'!H2","v":"TAHUN PELAJARAN 2020/2021"},null,null,null,null,{"$f":"'DATA KARTU'!$B31","v":"1B"},null,null,{"$f":"'DATA KARTU'!$D$2&\" \"&'DATA KARTU'!H2","v":"TAHUN PELAJARAN 2020/2021"},null,null,null,null,{"$f":"'DATA KARTU'!$B32","v":"1B"}]
[null,{"$f":"'DATA KARTU'!$D$3","v":"MIS NURUL ISLAM LABRUK KIDUL"},null,null,null,null,null,null,null,{"$f":"'DATA KARTU'!$D$3","v":"MIS NURUL ISLAM LABRUK KIDUL"}]
[]
[null,null,"Nomor Peserta",null,":",{"$f":"'DATA KARTU'!$C31","v":"1-2021-023-2"},null,null,null,null,"Nomor Peserta",null,":",{"$f":"'DATA KARTU'!$C32","v":"1-2021-024-9"}]
[null,null,"Nama Peserta",null,":",{"$f":"'DATA KARTU'!$D31","v":"NISFI RAMADHANI"},null,null,null,null,"Nama Peserta",null,":",{"$f":"'DATA KARTU'!$D32","v":"NOVI AGISTA SALSABILLA"}]
[null,null,"Tempat Tanggal Lahir",null,":",{"$f":"'DATA KARTU'!$F31&\", \"&TEXT('DATA KARTU'!$G31,\"dd mmmm yyyy\")","v":"Lumajang, 15 September 2008"},null,null,null,null,"Tempat Tanggal Lahir",null,":",{"$f":"'DATA KARTU'!$F32&\", \"&TEXT('DATA KARTU'!$G32,\"dd mmmm yyyy\")","v":"Lumajang, 09 Oktober 2008"}]
[]
[null,null,null,null,null,{"$f":"'DATA KARTU'!$D$5&\", \"&TEXT('DATA KARTU'!$D$6,\"dd mmmm yyyy\")","v":"Labruk Kidul, 22 Januari 2021"},null,null,null,null,null,null,null,{"$f":"'DATA KARTU'!$D$5&\", \"&TEXT('DATA KARTU'!$D$6,\"dd mmmm yyyy\")","v":"Labruk Kidul, 22 Januari 2021"}]
[null,null,"Pas Photo 3x3",null,null,"Kepala Madrasah",null,null,null,null,"Pas Photo 3x3",null,null,"Kepala Madrasah"]
[]
[]
[null,null,null,null,null,{"$f":"'DATA KARTU'!$D$4","v":"SAHRONI,S.Pd.I"},null,null,null,null,null,null,null,{"$f":"'DATA KARTU'!$D$4","v":"SAHRONI,S.Pd.I"}]
[]
[]
[]
[]
[null,{"$f":"'DATA KARTU'!$D$1&\" \"&'DATA KARTU'!H1","v":"KARTU TANDA PESERTA UAMNU"},null,null,null,null,"RUANG",null,null,{"$f":"'DATA KARTU'!$D$1&\" \"&'DATA KARTU'!H1","v":"KARTU TANDA PESERTA UAMNU"},null,null,null,null,"RUANG"]
[null,{"$f":"'DATA KARTU'!$D$2&\" \"&'DATA KARTU'!H2","v":"TAHUN PELAJARAN 2020/2021"},null,null,null,null,{"$f":"'DATA KARTU'!$B33","v":"1B"},null,null,{"$f":"'DATA KARTU'!$D$2&\" \"&'DATA KARTU'!H2","v":"TAHUN PELAJARAN 2020/2021"},null,null,null,null,{"$f":"'DATA KARTU'!$B34","v":"1B"}]
[null,{"$f":"'DATA KARTU'!$D$3","v":"MIS NURUL ISLAM LABRUK KIDUL"},null,null,null,null,null,null,null,{"$f":"'DATA KARTU'!$D$3","v":"MIS NURUL ISLAM LABRUK KIDUL"}]
[]
[null,null,"Nomor Peserta",null,":",{"$f":"'DATA KARTU'!$C33","v":"1-2021-025-8"},null,null,null,null,"Nomor Peserta",null,":",{"$f":"'DATA KARTU'!$C34","v":"1-2021-026-7"}]
[null,null,"Nama Peserta",null,":",{"$f":"'DATA KARTU'!$D33","v":"NURIL RAMADHANI"},null,null,null,null,"Nama Peserta",null,":",{"$f":"'DATA KARTU'!$D34","v":"RAHAYU IKA AGUSTIN"}]
[null,null,"Tempat Tanggal Lahir",null,":",{"$f":"'DATA KARTU'!$F33&\", \"&TEXT('DATA KARTU'!$G33,\"dd mmmm yyyy\")","v":"Lumajang, 03 September 2008"},null,null,null,null,"Tempat Tanggal Lahir",null,":",{"$f":"'DATA KARTU'!$F34&\", \"&TEXT('DATA KARTU'!$G34,\"dd mmmm yyyy\")","v":"Lumajang, 17 Agustus 2008"}]
[]
[null,null,null,null,null,{"$f":"'DATA KARTU'!$D$5&\", \"&TEXT('DATA KARTU'!$D$6,\"dd mmmm yyyy\")","v":"Labruk Kidul, 22 Januari 2021"},null,null,null,null,null,null,null,{"$f":"'DATA KARTU'!$D$5&\", \"&TEXT('DATA KARTU'!$D$6,\"dd mmmm yyyy\")","v":"Labruk Kidul, 22 Januari 2021"}]
[null,null,"Pas Photo 3x3",null,null,"Kepala Madrasah",null,null,null,null,"Pas Photo 3x3",null,null,"Kepala Madrasah"]
[]
[]
[null,null,null,null,null,{"$f":"'DATA KARTU'!$D$4","v":"SAHRONI,S.Pd.I"},null,null,null,null,null,null,null,{"$f":"'DATA KARTU'!$D$4","v":"SAHRONI,S.Pd.I"}]
[]
[]
[]
[]
[null,{"$f":"'DATA KARTU'!$D$1&\" \"&'DATA KARTU'!H1","v":"KARTU TANDA PESERTA UAMNU"},null,null,null,null,"RUANG",null,null,{"$f":"'DATA KARTU'!$D$1&\" \"&'DATA KARTU'!H1","v":"KARTU TANDA PESERTA UAMNU"},null,null,null,null,"RUANG"]
[null,{"$f":"'DATA KARTU'!$D$2&\" \"&'DATA KARTU'!H2","v":"TAHUN PELAJARAN 2020/2021"},null,null,null,null,{"$f":"'DATA KARTU'!$B35","v":"1B"},null,null,{"$f":"'DATA KARTU'!$D$2&\" \"&'DATA KARTU'!H2","v":"TAHUN PELAJARAN 2020/2021"},null,null,null,null,{"$f":"'DATA KARTU'!$B36","v":"1B"}]
[null,{"$f":"'DATA KARTU'!$D$3","v":"MIS NURUL ISLAM LABRUK KIDUL"},null,null,null,null,null,null,null,{"$f":"'DATA KARTU'!$D$3","v":"MIS NURUL ISLAM LABRUK KIDUL"}]
[]
[null,null,"Nomor Peserta",null,":",{"$f":"'DATA KARTU'!$C35","v":"1-2021-027-6"},null,null,null,null,"Nomor Peserta",null,":",{"$f":"'DATA KARTU'!$C36","v":"1-2021-028-5"}]
[null,null,"Nama Peserta",null,":",{"$f":"'DATA KARTU'!$D35","v":"RIF`ATUL MUNAWAROH"},null,null,null,null,"Nama Peserta",null,":",{"$f":"'DATA KARTU'!$D36","v":"SHABRINA ROSEMILA AN-NADHIFAH"}]
[null,null,"Tempat Tanggal Lahir",null,":",{"$f":"'DATA KARTU'!$F35&\", \"&TEXT('DATA KARTU'!$G35,\"dd mmmm yyyy\")","v":"Lumajang, 30 November 2008"},null,null,null,null,"Tempat Tanggal Lahir",null,":",{"$f":"'DATA KARTU'!$F36&\", \"&TEXT('DATA KARTU'!$G36,\"dd mmmm yyyy\")","v":"Lumajang, 16 September 2008"}]
[]
[null,null,null,null,null,{"$f":"'DATA KARTU'!$D$5&\", \"&TEXT('DATA KARTU'!$D$6,\"dd mmmm yyyy\")","v":"Labruk Kidul, 22 Januari 2021"},null,null,null,null,null,null,null,{"$f":"'DATA KARTU'!$D$5&\", \"&TEXT('DATA KARTU'!$D$6,\"dd mmmm yyyy\")","v":"Labruk Kidul, 22 Januari 2021"}]
[null,null,"Pas Photo 3x3",null,null,"Kepala Madrasah",null,null,null,null,"Pas Photo 3x3",null,null,"Kepala Madrasah"]
[]
[]
[null,null,null,null,null,{"$f":"'DATA KARTU'!$D$4","v":"SAHRONI,S.Pd.I"},null,null,null,null,null,null,null,{"$f":"'DATA KARTU'!$D$4","v":"SAHRONI,S.Pd.I"}]
[]
[]
[]
[]
[null,{"$f":"'DATA KARTU'!$D$1&\" \"&'DATA KARTU'!H1","v":"KARTU TANDA PESERTA UAMNU"},null,null,null,null,"RUANG",null,null,{"$f":"'DATA KARTU'!$D$1&\" \"&'DATA KARTU'!H1","v":"KARTU TANDA PESERTA UAMNU"},null,null,null,null,"RUANG"]
[null,{"$f":"'DATA KARTU'!$D$2&\" \"&'DATA KARTU'!H2","v":"TAHUN PELAJARAN 2020/2021"},null,null,null,null,{"$f":"'DATA KARTU'!$B37","v":"1B"},null,null,{"$f":"'DATA KARTU'!$D$2&\" \"&'DATA KARTU'!H2","v":"TAHUN PELAJARAN 2020/2021"},null,null,null,null,{"$f":"'DATA KARTU'!$B38","v":"1B"}]
[null,{"$f":"'DATA KARTU'!$D$3","v":"MIS NURUL ISLAM LABRUK KIDUL"},null,null,null,null,null,null,null,{"$f":"'DATA KARTU'!$D$3","v":"MIS NURUL ISLAM LABRUK KIDUL"}]
[]
[null,null,"Nomor Peserta",null,":",{"$f":"'DATA KARTU'!$C37","v":"1-2021-029-4"},null,null,null,null,"Nomor Peserta",null,":",{"$f":"'DATA KARTU'!$C38","v":"1-2021-030-3"}]
[null,null,"Nama Peserta",null,":",{"$f":"'DATA KARTU'!$D37","v":"SHAHWA PUTRI SALSABYLA"},null,null,null,null,"Nama Peserta",null,":",{"$f":"'DATA KARTU'!$D38","v":"SITI ROBI`ATUL MAULIDIYAH"}]
[null,null,"Tempat Tanggal Lahir",null,":",{"$f":"'DATA KARTU'!$F37&\", \"&TEXT('DATA KARTU'!$G37,\"dd mmmm yyyy\")","v":"Lumajang, 21 Desember 2008"},null,null,null,null,"Tempat Tanggal Lahir",null,":",{"$f":"'DATA KARTU'!$F38&\", \"&TEXT('DATA KARTU'!$G38,\"dd mmmm yyyy\")","v":"Lumajang, 15 Maret 2009"}]
[]
[null,null,null,null,null,{"$f":"'DATA KARTU'!$D$5&\", \"&TEXT('DATA KARTU'!$D$6,\"dd mmmm yyyy\")","v":"Labruk Kidul, 22 Januari 2021"},null,null,null,null,null,null,null,{"$f":"'DATA KARTU'!$D$5&\", \"&TEXT('DATA KARTU'!$D$6,\"dd mmmm yyyy\")","v":"Labruk Kidul, 22 Januari 2021"}]
[null,null,"Pas Photo 3x3",null,null,"Kepala Madrasah",null,null,null,null,"Pas Photo 3x3",null,null,"Kepala Madrasah"]
[]
[]
[null,null,null,null,null,{"$f":"'DATA KARTU'!$D$4","v":"SAHRONI,S.Pd.I"},null,null,null,null,null,null,null,{"$f":"'DATA KARTU'!$D$4","v":"SAHRONI,S.Pd.I"}]
[]
[]
[]
[]
[null,{"$f":"'DATA KARTU'!$D$1&\" \"&'DATA KARTU'!H1","v":"KARTU TANDA PESERTA UAMNU"},null,null,null,null,"RUANG",null,null,{"$f":"'DATA KARTU'!$D$1&\" \"&'DATA KARTU'!H1","v":"KARTU TANDA PESERTA UAMNU"},null,null,null,null,"RUANG"]
[null,{"$f":"'DATA KARTU'!$D$2&\" \"&'DATA KARTU'!H2","v":"TAHUN PELAJARAN 2020/2021"},null,null,null,null,{"$f":"'DATA KARTU'!$B39","v":"1B"},null,null,{"$f":"'DATA KARTU'!$D$2&\" \"&'DATA KARTU'!H2","v":"TAHUN PELAJARAN 2020/2021"},null,null,null,null,{"$f":"'DATA KARTU'!$B40","v":"1B"}]
[null,{"$f":"'DATA KARTU'!$D$3","v":"MIS NURUL ISLAM LABRUK KIDUL"},null,null,null,null,null,null,null,{"$f":"'DATA KARTU'!$D$3","v":"MIS NURUL ISLAM LABRUK KIDUL"}]
[]
[null,null,"Nomor Peserta",null,":",{"$f":"'DATA KARTU'!$C39","v":"1-2021-031-2"},null,null,null,null,"Nomor Peserta",null,":",{"$f":"'DATA KARTU'!$C40","v":"1-2021-032-9"}]
[null,null,"Nama Peserta",null,":",{"$f":"'DATA KARTU'!$D39","v":"USWATUN KHOIRUNNISA"},null,null,null,null,"Nama Peserta",null,":",{"$f":"'DATA KARTU'!$D40","v":"ZASKIA AYU RISTA"}]
[null,null,"Tempat Tanggal Lahir",null,":",{"$f":"'DATA KARTU'!$F39&\", \"&TEXT('DATA KARTU'!$G39,\"dd mmmm yyyy\")","v":"Lumajang, 24 November 2008"},null,null,null,null,"Tempat Tanggal Lahir",null,":",{"$f":"'DATA KARTU'!$F40&\", \"&TEXT('DATA KARTU'!$G40,\"dd mmmm yyyy\")","v":"Lumajang, 27 Juni 2008"}]
[]
[null,null,null,null,null,{"$f":"'DATA KARTU'!$D$5&\", \"&TEXT('DATA KARTU'!$D$6,\"dd mmmm yyyy\")","v":"Labruk Kidul, 22 Januari 2021"},null,null,null,null,null,null,null,{"$f":"'DATA KARTU'!$D$5&\", \"&TEXT('DATA KARTU'!$D$6,\"dd mmmm yyyy\")","v":"Labruk Kidul, 22 Januari 2021"}]
[null,null,"Pas Photo 3x3",null,null,"Kepala Madrasah",null,null,null,null,"Pas Photo 3x3",null,null,"Kepala Madrasah"]
[]
[]
[null,null,null,null,null,{"$f":"'DATA KARTU'!$D$4","v":"SAHRONI,S.Pd.I"},null,null,null,null,null,null,null,{"$f":"'DATA KARTU'!$D$4","v":"SAHRONI,S.Pd.I"}]
[]
[]
[]
[]
[null,{"$f":"'DATA KARTU'!$D$1&\" \"&'DATA KARTU'!H1","v":"KARTU TANDA PESERTA UAMNU"},null,null,null,null,"RUANG",null,null,{"$f":"'DATA KARTU'!$D$1&\" \"&'DATA KARTU'!H1","v":"KARTU TANDA PESERTA UAMNU"},null,null,null,null,"RUANG"]
[null,{"$f":"'DATA KARTU'!$D$2&\" \"&'DATA KARTU'!H2","v":"TAHUN PELAJARAN 2020/2021"},null,null,null,null,{"$f":"'DATA KARTU'!$B41","v":"1B"},null,null,{"$f":"'DATA KARTU'!$D$2&\" \"&'DATA KARTU'!H2","v":"TAHUN PELAJARAN 2020/2021"},null,null,null,null,{"$f":"'DATA KARTU'!$B42","v":"1B"}]
[null,{"$f":"'DATA KARTU'!$D$3","v":"MIS NURUL ISLAM LABRUK KIDUL"},null,null,null,null,null,null,null,{"$f":"'DATA KARTU'!$D$3","v":"MIS NURUL ISLAM LABRUK KIDUL"}]
[]
[null,null,"Nomor Peserta",null,":",{"$f":"'DATA KARTU'!$C41","v":"1-2021-033-8"},null,null,null,null,"Nomor Peserta",null,":",{"$f":"'DATA KARTU'!$C42","v":"1-2021-034-7"}]
[null,null,"Nama Peserta",null,":",{"$f":"'DATA KARTU'!$D41","v":"ABD. ROCHMAN NAJA FATLAN PRATAMA"},null,null,null,null,"Nama Peserta",null,":",{"$f":"'DATA KARTU'!$D42","v":"ABDURRAHMAN FAQIH"}]
[null,null,"Tempat Tanggal Lahir",null,":",{"$f":"'DATA KARTU'!$F41&\", \"&TEXT('DATA KARTU'!$G41,\"dd mmmm yyyy\")","v":"Sidoarjo, 14 November 2008"},null,null,null,null,"Tempat Tanggal Lahir",null,":",{"$f":"'DATA KARTU'!$F42&\", \"&TEXT('DATA KARTU'!$G42,\"dd mmmm yyyy\")","v":"Lumajang, 16 Januari 2009"}]
[]
[null,null,null,null,null,{"$f":"'DATA KARTU'!$D$5&\", \"&TEXT('DATA KARTU'!$D$6,\"dd mmmm yyyy\")","v":"Labruk Kidul, 22 Januari 2021"},null,null,null,null,null,null,null,{"$f":"'DATA KARTU'!$D$5&\", \"&TEXT('DATA KARTU'!$D$6,\"dd mmmm yyyy\")","v":"Labruk Kidul, 22 Januari 2021"}]
[null,null,"Pas Photo 3x3",null,null,"Kepala Madrasah",null,null,null,null,"Pas Photo 3x3",null,null,"Kepala Madrasah"]
[]
[]
[null,null,null,null,null,{"$f":"'DATA KARTU'!$D$4","v":"SAHRONI,S.Pd.I"},null,null,null,null,null,null,null,{"$f":"'DATA KARTU'!$D$4","v":"SAHRONI,S.Pd.I"}]
[]
[]
[]
[]
[null,{"$f":"'DATA KARTU'!$D$1&\" \"&'DATA KARTU'!H1","v":"KARTU TANDA PESERTA UAMNU"},null,null,null,null,"RUANG",null,null,{"$f":"'DATA KARTU'!$D$1&\" \"&'DATA KARTU'!H1","v":"KARTU TANDA PESERTA UAMNU"},null,null,null,null,"RUANG"]
[null,{"$f":"'DATA KARTU'!$D$2&\" \"&'DATA KARTU'!H2","v":"TAHUN PELAJARAN 2020/2021"},null,null,null,null,{"$f":"'DATA KARTU'!$B43","v":"1B"},null,null,{"$f":"'DATA KARTU'!$D$2&\" \"&'DATA KARTU'!H2","v":"TAHUN PELAJARAN 2020/2021"},null,null,null,null,{"$f":"'DATA KARTU'!$B44","v":"1B"}]
[null,{"$f":"'DATA KARTU'!$D$3","v":"MIS NURUL ISLAM LABRUK KIDUL"},null,null,null,null,null,null,null,{"$f":"'DATA KARTU'!$D$3","v":"MIS NURUL ISLAM LABRUK KIDUL"}]
[]
[null,null,"Nomor Peserta",null,":",{"$f":"'DATA KARTU'!$C43","v":"1-2021-035-6"},null,null,null,null,"Nomor Peserta",null,":",{"$f":"'DATA KARTU'!$C44","v":"1-2021-036-5"}]
[null,null,"Nama Peserta",null,":",{"$f":"'DATA KARTU'!$D43","v":"ACHMAD FARROIHUN MUSHOBIRONILLAH"},null,null,null,null,"Nama Peserta",null,":",{"$f":"'DATA KARTU'!$D44","v":"ACHMAD HASBI ASSIDDIQI"}]
[null,null,"Tempat Tanggal Lahir",null,":",{"$f":"'DATA KARTU'!$F43&\", \"&TEXT('DATA KARTU'!$G43,\"dd mmmm yyyy\")","v":"Lumajang, 16 Desember 2008"},null,null,null,null,"Tempat Tanggal Lahir",null,":",{"$f":"'DATA KARTU'!$F44&\", \"&TEXT('DATA KARTU'!$G44,\"dd mmmm yyyy\")","v":"Lumajang, 05 Maret 2008"}]
[]
[null,null,null,null,null,{"$f":"'DATA KARTU'!$D$5&\", \"&TEXT('DATA KARTU'!$D$6,\"dd mmmm yyyy\")","v":"Labruk Kidul, 22 Januari 2021"},null,null,null,null,null,null,null,{"$f":"'DATA KARTU'!$D$5&\", \"&TEXT('DATA KARTU'!$D$6,\"dd mmmm yyyy\")","v":"Labruk Kidul, 22 Januari 2021"}]
[null,null,"Pas Photo 3x3",null,null,"Kepala Madrasah",null,null,null,null,"Pas Photo 3x3",null,null,"Kepala Madrasah"]
[]
[]
[null,null,null,null,null,{"$f":"'DATA KARTU'!$D$4","v":"SAHRONI,S.Pd.I"},null,null,null,null,null,null,null,{"$f":"'DATA KARTU'!$D$4","v":"SAHRONI,S.Pd.I"}]
[]
[]
[]
[]
[null,{"$f":"'DATA KARTU'!$D$1&\" \"&'DATA KARTU'!H1","v":"KARTU TANDA PESERTA UAMNU"},null,null,null,null,"RUANG",null,null,{"$f":"'DATA KARTU'!$D$1&\" \"&'DATA KARTU'!H1","v":"KARTU TANDA PESERTA UAMNU"},null,null,null,null,"RUANG"]
[null,{"$f":"'DATA KARTU'!$D$2&\" \"&'DATA KARTU'!H2","v":"TAHUN PELAJARAN 2020/2021"},null,null,null,null,{"$f":"'DATA KARTU'!$B45","v":"1B"},null,null,{"$f":"'DATA KARTU'!$D$2&\" \"&'DATA KARTU'!H2","v":"TAHUN PELAJARAN 2020/2021"},null,null,null,null,{"$f":"'DATA KARTU'!$B46","v":"1B"}]
[null,{"$f":"'DATA KARTU'!$D$3","v":"MIS NURUL ISLAM LABRUK KIDUL"},null,null,null,null,null,null,null,{"$f":"'DATA KARTU'!$D$3","v":"MIS NURUL ISLAM LABRUK KIDUL"}]
[]
[null,null,"Nomor Peserta",null,":",{"$f":"'DATA KARTU'!$C45","v":"1-2021-037-4"},null,null,null,null,"Nomor Peserta",null,":",{"$f":"'DATA KARTU'!$C46","v":"1-2021-038-3"}]
[null,null,"Nama Peserta",null,":",{"$f":"'DATA KARTU'!$D45","v":"ACHMAD REZA AKRAM ALAUDDIN"},null,null,null,null,"Nama Peserta",null,":",{"$f":"'DATA KARTU'!$D46","v":"ACHMAD YANI"}]
[null,null,"Tempat Tanggal Lahir",null,":",{"$f":"'DATA KARTU'!$F45&\", \"&TEXT('DATA KARTU'!$G45,\"dd mmmm yyyy\")","v":"Lumajang, 05 Mei 2009"},null,null,null,null,"Tempat Tanggal Lahir",null,":",{"$f":"'DATA KARTU'!$F46&\", \"&TEXT('DATA KARTU'!$G46,\"dd mmmm yyyy\")","v":"Lumajang, 12 Juni 2008"}]
[]
[null,null,null,null,null,{"$f":"'DATA KARTU'!$D$5&\", \"&TEXT('DATA KARTU'!$D$6,\"dd mmmm yyyy\")","v":"Labruk Kidul, 22 Januari 2021"},null,null,null,null,null,null,null,{"$f":"'DATA KARTU'!$D$5&\", \"&TEXT('DATA KARTU'!$D$6,\"dd mmmm yyyy\")","v":"Labruk Kidul, 22 Januari 2021"}]
[null,null,"Pas Photo 3x3",null,null,"Kepala Madrasah",null,null,null,null,"Pas Photo 3x3",null,null,"Kepala Madrasah"]
[]
[]
[null,null,null,null,null,{"$f":"'DATA KARTU'!$D$4","v":"SAHRONI,S.Pd.I"},null,null,null,null,null,null,null,{"$f":"'DATA KARTU'!$D$4","v":"SAHRONI,S.Pd.I"}]
[]
[]
[]
[]
[null,{"$f":"'DATA KARTU'!$D$1&\" \"&'DATA KARTU'!H1","v":"KARTU TANDA PESERTA UAMNU"},null,null,null,null,"RUANG",null,null,{"$f":"'DATA KARTU'!$D$1&\" \"&'DATA KARTU'!H1","v":"KARTU TANDA PESERTA UAMNU"},null,null,null,null,"RUANG"]
[null,{"$f":"'DATA KARTU'!$D$2&\" \"&'DATA KARTU'!H2","v":"TAHUN PELAJARAN 2020/2021"},null,null,null,null,{"$f":"'DATA KARTU'!$B47","v":"1B"},null,null,{"$f":"'DATA KARTU'!$D$2&\" \"&'DATA KARTU'!H2","v":"TAHUN PELAJARAN 2020/2021"},null,null,null,null,{"$f":"'DATA KARTU'!$B48","v":"1B"}]
[null,{"$f":"'DATA KARTU'!$D$3","v":"MIS NURUL ISLAM LABRUK KIDUL"},null,null,null,null,null,null,null,{"$f":"'DATA KARTU'!$D$3","v":"MIS NURUL ISLAM LABRUK KIDUL"}]
[]
[null,null,"Nomor Peserta",null,":",{"$f":"'DATA KARTU'!$C47","v":"1-2021-039-2"},null,null,null,null,"Nomor Peserta",null,":",{"$f":"'DATA KARTU'!$C48","v":"1-2021-040-9"}]
[null,null,"Nama Peserta",null,":",{"$f":"'DATA KARTU'!$D47","v":"AKHMAD RIDWAN"},null,null,null,null,"Nama Peserta",null,":",{"$f":"'DATA KARTU'!$D48","v":"ANDREAN DWI YULIANO"}]
[null,null,"Tempat Tanggal Lahir",null,":",{"$f":"'DATA KARTU'!$F47&\", \"&TEXT('DATA KARTU'!$G47,\"dd mmmm yyyy\")","v":"Lumajang, 01 Januari 2008"},null,null,null,null,"Tempat Tanggal Lahir",null,":",{"$f":"'DATA KARTU'!$F48&\", \"&TEXT('DATA KARTU'!$G48,\"dd mmmm yyyy\")","v":"Lumajang, 11 November 2008"}]
[]
[null,null,null,null,null,{"$f":"'DATA KARTU'!$D$5&\", \"&TEXT('DATA KARTU'!$D$6,\"dd mmmm yyyy\")","v":"Labruk Kidul, 22 Januari 2021"},null,null,null,null,null,null,null,{"$f":"'DATA KARTU'!$D$5&\", \"&TEXT('DATA KARTU'!$D$6,\"dd mmmm yyyy\")","v":"Labruk Kidul, 22 Januari 2021"}]
[null,null,"Pas Photo 3x3",null,null,"Kepala Madrasah",null,null,null,null,"Pas Photo 3x3",null,null,"Kepala Madrasah"]
[]
[]
[null,null,null,null,null,{"$f":"'DATA KARTU'!$D$4","v":"SAHRONI,S.Pd.I"},null,null,null,null,null,null,null,{"$f":"'DATA KARTU'!$D$4","v":"SAHRONI,S.Pd.I"}]
[]
[]
[]
[]
[null,{"$f":"'DATA KARTU'!$D$1&\" \"&'DATA KARTU'!H1","v":"KARTU TANDA PESERTA UAMNU"},null,null,null,null,"RUANG",null,null,{"$f":"'DATA KARTU'!$D$1&\" \"&'DATA KARTU'!H1","v":"KARTU TANDA PESERTA UAMNU"},null,null,null,null,"RUANG"]
[null,{"$f":"'DATA KARTU'!$D$2&\" \"&'DATA KARTU'!H2","v":"TAHUN PELAJARAN 2020/2021"},null,null,null,null,{"$f":"'DATA KARTU'!$B49","v":"1C"},null,null,{"$f":"'DATA KARTU'!$D$2&\" \"&'DATA KARTU'!H2","v":"TAHUN PELAJARAN 2020/2021"},null,null,null,null,{"$f":"'DATA KARTU'!$B50","v":"1C"}]
[null,{"$f":"'DATA KARTU'!$D$3","v":"MIS NURUL ISLAM LABRUK KIDUL"},null,null,null,null,null,null,null,{"$f":"'DATA KARTU'!$D$3","v":"MIS NURUL ISLAM LABRUK KIDUL"}]
[]
[null,null,"Nomor Peserta",null,":",{"$f":"'DATA KARTU'!$C49","v":"1-2021-041-8"},null,null,null,null,"Nomor Peserta",null,":",{"$f":"'DATA KARTU'!$C50","v":"1-2021-042-7"}]
[null,null,"Nama Peserta",null,":",{"$f":"'DATA KARTU'!$D49","v":"ASFAN FAKHRI BARANI"},null,null,null,null,"Nama Peserta",null,":",{"$f":"'DATA KARTU'!$D50","v":"DEVAN ADITYA SAPUTRA"}]
[null,null,"Tempat Tanggal Lahir",null,":",{"$f":"'DATA KARTU'!$F49&\", \"&TEXT('DATA KARTU'!$G49,\"dd mmmm yyyy\")","v":"Lumajang, 18 Oktober 2008"},null,null,null,null,"Tempat Tanggal Lahir",null,":",{"$f":"'DATA KARTU'!$F50&\", \"&TEXT('DATA KARTU'!$G50,\"dd mmmm yyyy\")","v":"Lumajang, 06 Maret 2008"}]
[]
[null,null,null,null,null,{"$f":"'DATA KARTU'!$D$5&\", \"&TEXT('DATA KARTU'!$D$6,\"dd mmmm yyyy\")","v":"Labruk Kidul, 22 Januari 2021"},null,null,null,null,null,null,null,{"$f":"'DATA KARTU'!$D$5&\", \"&TEXT('DATA KARTU'!$D$6,\"dd mmmm yyyy\")","v":"Labruk Kidul, 22 Januari 2021"}]
[null,null,"Pas Photo 3x3",null,null,"Kepala Madrasah",null,null,null,null,"Pas Photo 3x3",null,null,"Kepala Madrasah"]
[]
[]
[null,null,null,null,null,{"$f":"'DATA KARTU'!$D$4","v":"SAHRONI,S.Pd.I"},null,null,null,null,null,null,null,{"$f":"'DATA KARTU'!$D$4","v":"SAHRONI,S.Pd.I"}]
[]
[]
[]
[]
[null,{"$f":"'DATA KARTU'!$D$1&\" \"&'DATA KARTU'!H1","v":"KARTU TANDA PESERTA UAMNU"},null,null,null,null,"RUANG",null,null,{"$f":"'DATA KARTU'!$D$1&\" \"&'DATA KARTU'!H1","v":"KARTU TANDA PESERTA UAMNU"},null,null,null,null,"RUANG"]
[null,{"$f":"'DATA KARTU'!$D$2&\" \"&'DATA KARTU'!H2","v":"TAHUN PELAJARAN 2020/2021"},null,null,null,null,{"$f":"'DATA KARTU'!$B51","v":"1C"},null,null,{"$f":"'DATA KARTU'!$D$2&\" \"&'DATA KARTU'!H2","v":"TAHUN PELAJARAN 2020/2021"},null,null,null,null,{"$f":"'DATA KARTU'!$B52","v":"1C"}]
[null,{"$f":"'DATA KARTU'!$D$3","v":"MIS NURUL ISLAM LABRUK KIDUL"},null,null,null,null,null,null,null,{"$f":"'DATA KARTU'!$D$3","v":"MIS NURUL ISLAM LABRUK KIDUL"}]
[]
[null,null,"Nomor Peserta",null,":",{"$f":"'DATA KARTU'!$C51","v":"1-2021-043-6"},null,null,null,null,"Nomor Peserta",null,":",{"$f":"'DATA KARTU'!$C52","v":"1-2021-044-5"}]
[null,null,"Nama Peserta",null,":",{"$f":"'DATA KARTU'!$D51","v":"FAHRUL AHMAD FAHREZA"},null,null,null,null,"Nama Peserta",null,":",{"$f":"'DATA KARTU'!$D52","v":"FAUZIA AMELIA PUTRI"}]
[null,null,"Tempat Tanggal Lahir",null,":",{"$f":"'DATA KARTU'!$F51&\", \"&TEXT('DATA KARTU'!$G51,\"dd mmmm yyyy\")","v":"Lumajang, 14 Desember 2008"},null,null,null,null,"Tempat Tanggal Lahir",null,":",{"$f":"'DATA KARTU'!$F52&\", \"&TEXT('DATA KARTU'!$G52,\"dd mmmm yyyy\")","v":"Lumajang, 30 Januari 2009"}]
[]
[null,null,null,null,null,{"$f":"'DATA KARTU'!$D$5&\", \"&TEXT('DATA KARTU'!$D$6,\"dd mmmm yyyy\")","v":"Labruk Kidul, 22 Januari 2021"},null,null,null,null,null,null,null,{"$f":"'DATA KARTU'!$D$5&\", \"&TEXT('DATA KARTU'!$D$6,\"dd mmmm yyyy\")","v":"Labruk Kidul, 22 Januari 2021"}]
[null,null,"Pas Photo 3x3",null,null,"Kepala Madrasah",null,null,null,null,"Pas Photo 3x3",null,null,"Kepala Madrasah"]
[]
[]
[null,null,null,null,null,{"$f":"'DATA KARTU'!$D$4","v":"SAHRONI,S.Pd.I"},null,null,null,null,null,null,null,{"$f":"'DATA KARTU'!$D$4","v":"SAHRONI,S.Pd.I"}]
[]
[]
[]
[]
[null,{"$f":"'DATA KARTU'!$D$1&\" \"&'DATA KARTU'!H1","v":"KARTU TANDA PESERTA UAMNU"},null,null,null,null,"RUANG",null,null,{"$f":"'DATA KARTU'!$D$1&\" \"&'DATA KARTU'!H1","v":"KARTU TANDA PESERTA UAMNU"},null,null,null,null,"RUANG"]
[null,{"$f":"'DATA KARTU'!$D$2&\" \"&'DATA KARTU'!H2","v":"TAHUN PELAJARAN 2020/2021"},null,null,null,null,{"$f":"'DATA KARTU'!$B53","v":"1C"},null,null,{"$f":"'DATA KARTU'!$D$2&\" \"&'DATA KARTU'!H2","v":"TAHUN PELAJARAN 2020/2021"},null,null,null,null,{"$f":"'DATA KARTU'!$B54","v":"1C"}]
[null,{"$f":"'DATA KARTU'!$D$3","v":"MIS NURUL ISLAM LABRUK KIDUL"},null,null,null,null,null,null,null,{"$f":"'DATA KARTU'!$D$3","v":"MIS NURUL ISLAM LABRUK KIDUL"}]
[]
[null,null,"Nomor Peserta",null,":",{"$f":"'DATA KARTU'!$C53","v":"1-2021-045-4"},null,null,null,null,"Nomor Peserta",null,":",{"$f":"'DATA KARTU'!$C54","v":"1-2021-046-3"}]
[null,null,"Nama Peserta",null,":",{"$f":"'DATA KARTU'!$D53","v":"FAZA AZIFAH SALSABILA"},null,null,null,null,"Nama Peserta",null,":",{"$f":"'DATA KARTU'!$D54","v":"HABIBIE NURUSSALAM"}]
[null,null,"Tempat Tanggal Lahir",null,":",{"$f":"'DATA KARTU'!$F53&\", \"&TEXT('DATA KARTU'!$G53,\"dd mmmm yyyy\")","v":"Lumajang, 23 Maret 2009"},null,null,null,null,"Tempat Tanggal Lahir",null,":",{"$f":"'DATA KARTU'!$F54&\", \"&TEXT('DATA KARTU'!$G54,\"dd mmmm yyyy\")","v":"Lumajang, 23 April 2008"}]
[]
[null,null,null,null,null,{"$f":"'DATA KARTU'!$D$5&\", \"&TEXT('DATA KARTU'!$D$6,\"dd mmmm yyyy\")","v":"Labruk Kidul, 22 Januari 2021"},null,null,null,null,null,null,null,{"$f":"'DATA KARTU'!$D$5&\", \"&TEXT('DATA KARTU'!$D$6,\"dd mmmm yyyy\")","v":"Labruk Kidul, 22 Januari 2021"}]
[null,null,"Pas Photo 3x3",null,null,"Kepala Madrasah",null,null,null,null,"Pas Photo 3x3",null,null,"Kepala Madrasah"]
[]
[]
[null,null,null,null,null,{"$f":"'DATA KARTU'!$D$4","v":"SAHRONI,S.Pd.I"},null,null,null,null,null,null,null,{"$f":"'DATA KARTU'!$D$4","v":"SAHRONI,S.Pd.I"}]
[]
[]
[]
[]
[null,{"$f":"'DATA KARTU'!$D$1&\" \"&'DATA KARTU'!H1","v":"KARTU TANDA PESERTA UAMNU"},null,null,null,null,"RUANG",null,null,{"$f":"'DATA KARTU'!$D$1&\" \"&'DATA KARTU'!H1","v":"KARTU TANDA PESERTA UAMNU"},null,null,null,null,"RUANG"]
[null,{"$f":"'DATA KARTU'!$D$2&\" \"&'DATA KARTU'!H2","v":"TAHUN PELAJARAN 2020/2021"},null,null,null,null,{"$f":"'DATA KARTU'!$B55","v":"1C"},null,null,{"$f":"'DATA KARTU'!$D$2&\" \"&'DATA KARTU'!H2","v":"TAHUN PELAJARAN 2020/2021"},null,null,null,null,{"$f":"'DATA KARTU'!$B56","v":"1C"}]
[null,{"$f":"'DATA KARTU'!$D$3","v":"MIS NURUL ISLAM LABRUK KIDUL"},null,null,null,null,null,null,null,{"$f":"'DATA KARTU'!$D$3","v":"MIS NURUL ISLAM LABRUK KIDUL"}]
[]
[null,null,"Nomor Peserta",null,":",{"$f":"'DATA KARTU'!$C55","v":"1-2021-047-2"},null,null,null,null,"Nomor Peserta",null,":",{"$f":"'DATA KARTU'!$C56","v":"1-2021-048-9"}]
[null,null,"Nama Peserta",null,":",{"$f":"'DATA KARTU'!$D55","v":"HIMATURROSYIDAH"},null,null,null,null,"Nama Peserta",null,":",{"$f":"'DATA KARTU'!$D56","v":"IFKARINA NAILA SAUQYA"}]
[null,null,"Tempat Tanggal Lahir",null,":",{"$f":"'DATA KARTU'!$F55&\", \"&TEXT('DATA KARTU'!$G55,\"dd mmmm yyyy\")","v":"Lumajang, 29 September 2008"},null,null,null,null,"Tempat Tanggal Lahir",null,":",{"$f":"'DATA KARTU'!$F56&\", \"&TEXT('DATA KARTU'!$G56,\"dd mmmm yyyy\")","v":"Lumajang, 13 Februari 2009"}]
[]
[null,null,null,null,null,{"$f":"'DATA KARTU'!$D$5&\", \"&TEXT('DATA KARTU'!$D$6,\"dd mmmm yyyy\")","v":"Labruk Kidul, 22 Januari 2021"},null,null,null,null,null,null,null,{"$f":"'DATA KARTU'!$D$5&\", \"&TEXT('DATA KARTU'!$D$6,\"dd mmmm yyyy\")","v":"Labruk Kidul, 22 Januari 2021"}]
[null,null,"Pas Photo 3x3",null,null,"Kepala Madrasah",null,null,null,null,"Pas Photo 3x3",null,null,"Kepala Madrasah"]
[]
[]
[null,null,null,null,null,{"$f":"'DATA KARTU'!$D$4","v":"SAHRONI,S.Pd.I"},null,null,null,null,null,null,null,{"$f":"'DATA KARTU'!$D$4","v":"SAHRONI,S.Pd.I"}]
[]
[]
[]
[]
[null,{"$f":"'DATA KARTU'!$D$1&\" \"&'DATA KARTU'!H1","v":"KARTU TANDA PESERTA UAMNU"},null,null,null,null,"RUANG",null,null,{"$f":"'DATA KARTU'!$D$1&\" \"&'DATA KARTU'!H1","v":"KARTU TANDA PESERTA UAMNU"},null,null,null,null,"RUANG"]
[null,{"$f":"'DATA KARTU'!$D$2&\" \"&'DATA KARTU'!H2","v":"TAHUN PELAJARAN 2020/2021"},null,null,null,null,{"$f":"'DATA KARTU'!$B57","v":"1C"},null,null,{"$f":"'DATA KARTU'!$D$2&\" \"&'DATA KARTU'!H2","v":"TAHUN PELAJARAN 2020/2021"},null,null,null,null,{"$f":"'DATA KARTU'!$B58","v":"1C"}]
[null,{"$f":"'DATA KARTU'!$D$3","v":"MIS NURUL ISLAM LABRUK KIDUL"},null,null,null,null,null,null,null,{"$f":"'DATA KARTU'!$D$3","v":"MIS NURUL ISLAM LABRUK KIDUL"}]
[]
[null,null,"Nomor Peserta",null,":",{"$f":"'DATA KARTU'!$C57","v":"1-2021-049-8"},null,null,null,null,"Nomor Peserta",null,":",{"$f":"'DATA KARTU'!$C58","v":"1-2021-050-7"}]
[null,null,"Nama Peserta",null,":",{"$f":"'DATA KARTU'!$D57","v":"KEISA AYU SASKIYAH"},null,null,null,null,"Nama Peserta",null,":",{"$f":"'DATA KARTU'!$D58","v":"MOCHAMMAD RENO FIRMANSYA"}]
[null,null,"Tempat Tanggal Lahir",null,":",{"$f":"'DATA KARTU'!$F57&\", \"&TEXT('DATA KARTU'!$G57,\"dd mmmm yyyy\")","v":"Lumajang, 02 Februari 2009"},null,null,null,null,"Tempat Tanggal Lahir",null,":",{"$f":"'DATA KARTU'!$F58&\", \"&TEXT('DATA KARTU'!$G58,\"dd mmmm yyyy\")","v":"Lumajang, 21 April 2008"}]
[]
[null,null,null,null,null,{"$f":"'DATA KARTU'!$D$5&\", \"&TEXT('DATA KARTU'!$D$6,\"dd mmmm yyyy\")","v":"Labruk Kidul, 22 Januari 2021"},null,null,null,null,null,null,null,{"$f":"'DATA KARTU'!$D$5&\", \"&TEXT('DATA KARTU'!$D$6,\"dd mmmm yyyy\")","v":"Labruk Kidul, 22 Januari 2021"}]
[null,null,"Pas Photo 3x3",null,null,"Kepala Madrasah",null,null,null,null,"Pas Photo 3x3",null,null,"Kepala Madrasah"]
[]
[]
[null,null,null,null,null,{"$f":"'DATA KARTU'!$D$4","v":"SAHRONI,S.Pd.I"},null,null,null,null,null,null,null,{"$f":"'DATA KARTU'!$D$4","v":"SAHRONI,S.Pd.I"}]
[]
[]
[]
[]
[]
[null,{"$f":"'DATA KARTU'!$D$1&\" \"&'DATA KARTU'!H1","v":"KARTU TANDA PESERTA UAMNU"},null,null,null,null,"RUANG",null,null,{"$f":"'DATA KARTU'!$D$1&\" \"&'DATA KARTU'!H1","v":"KARTU TANDA PESERTA UAMNU"},null,null,null,null,"RUANG"]
[null,{"$f":"'DATA KARTU'!$D$2&\" \"&'DATA KARTU'!H2","v":"TAHUN PELAJARAN 2020/2021"},null,null,null,null,{"$f":"'DATA KARTU'!$B59","v":"1C"},null,null,{"$f":"'DATA KARTU'!$D$2&\" \"&'DATA KARTU'!H2","v":"TAHUN PELAJARAN 2020/2021"},null,null,null,null,{"$f":"'DATA KARTU'!$B60","v":"1C"}]
[null,{"$f":"'DATA KARTU'!$D$3","v":"MIS NURUL ISLAM LABRUK KIDUL"},null,null,null,null,null,null,null,{"$f":"'DATA KARTU'!$D$3","v":"MIS NURUL ISLAM LABRUK KIDUL"}]
[]
[null,null,"Nomor Peserta",null,":",{"$f":"'DATA KARTU'!$C59","v":"1-2021-051-6"},null,null,null,null,"Nomor Peserta",null,":",{"$f":"'DATA KARTU'!$C60","v":"1-2021-052-5"}]
[null,null,"Nama Peserta",null,":",{"$f":"'DATA KARTU'!$D59","v":"MOHAMAD NUR KHAFID KHABIBULLOH"},null,null,null,null,"Nama Peserta",null,":",{"$f":"'DATA KARTU'!$D60","v":"MOHAMMAD NAUFAL NAWWARUDDIN"}]
[null,null,"Tempat Tanggal Lahir",null,":",{"$f":"'DATA KARTU'!$F59&\", \"&TEXT('DATA KARTU'!$G59,\"dd mmmm yyyy\")","v":"Lumajang, 06 Juni 2008"},null,null,null,null,"Tempat Tanggal Lahir",null,":",{"$f":"'DATA KARTU'!$F60&\", \"&TEXT('DATA KARTU'!$G60,\"dd mmmm yyyy\")","v":"Lumajang, 19 Februari 2009"}]
[]
[null,null,null,null,null,{"$f":"'DATA KARTU'!$D$5&\", \"&TEXT('DATA KARTU'!$D$6,\"dd mmmm yyyy\")","v":"Labruk Kidul, 22 Januari 2021"},null,null,null,null,null,null,null,{"$f":"'DATA KARTU'!$D$5&\", \"&TEXT('DATA KARTU'!$D$6,\"dd mmmm yyyy\")","v":"Labruk Kidul, 22 Januari 2021"}]
[null,null,"Pas Photo 3x3",null,null,"Kepala Madrasah",null,null,null,null,"Pas Photo 3x3",null,null,"Kepala Madrasah"]
[]
[]
[null,null,null,null,null,{"$f":"'DATA KARTU'!$D$4","v":"SAHRONI,S.Pd.I"},null,null,null,null,null,null,null,{"$f":"'DATA KARTU'!$D$4","v":"SAHRONI,S.Pd.I"}]
[]
[]
[]
[]
[null,{"$f":"'DATA KARTU'!$D$1&\" \"&'DATA KARTU'!H1","v":"KARTU TANDA PESERTA UAMNU"},null,null,null,null,"RUANG",null,null,{"$f":"'DATA KARTU'!$D$1&\" \"&'DATA KARTU'!H1","v":"KARTU TANDA PESERTA UAMNU"},null,null,null,null,"RUANG"]
[null,{"$f":"'DATA KARTU'!$D$2&\" \"&'DATA KARTU'!H2","v":"TAHUN PELAJARAN 2020/2021"},null,null,null,null,{"$f":"'DATA KARTU'!$B61","v":"1C"},null,null,{"$f":"'DATA KARTU'!$D$2&\" \"&'DATA KARTU'!H2","v":"TAHUN PELAJARAN 2020/2021"},null,null,null,null,{"$f":"'DATA KARTU'!$B62","v":"1C"}]
[null,{"$f":"'DATA KARTU'!$D$3","v":"MIS NURUL ISLAM LABRUK KIDUL"},null,null,null,null,null,null,null,{"$f":"'DATA KARTU'!$D$3","v":"MIS NURUL ISLAM LABRUK KIDUL"}]
[]
[null,null,"Nomor Peserta",null,":",{"$f":"'DATA KARTU'!$C61","v":"1-2021-053-4"},null,null,null,null,"Nomor Peserta",null,":",{"$f":"'DATA KARTU'!$C62","v":"1-2021-054-3"}]
[null,null,"Nama Peserta",null,":",{"$f":"'DATA KARTU'!$D61","v":"MUCHAMAD PRIMA PAMBUDI"},null,null,null,null,"Nama Peserta",null,":",{"$f":"'DATA KARTU'!$D62","v":"MUHAMMAD ALFAN FATHONI"}]
[null,null,"Tempat Tanggal Lahir",null,":",{"$f":"'DATA KARTU'!$F61&\", \"&TEXT('DATA KARTU'!$G61,\"dd mmmm yyyy\")","v":"Lumajang, 16 Maret 2008"},null,null,null,null,"Tempat Tanggal Lahir",null,":",{"$f":"'DATA KARTU'!$F62&\", \"&TEXT('DATA KARTU'!$G62,\"dd mmmm yyyy\")","v":"Lumajang, 19 Agustus 2008"}]
[]
[null,null,null,null,null,{"$f":"'DATA KARTU'!$D$5&\", \"&TEXT('DATA KARTU'!$D$6,\"dd mmmm yyyy\")","v":"Labruk Kidul, 22 Januari 2021"},null,null,null,null,null,null,null,{"$f":"'DATA KARTU'!$D$5&\", \"&TEXT('DATA KARTU'!$D$6,\"dd mmmm yyyy\")","v":"Labruk Kidul, 22 Januari 2021"}]
[null,null,"Pas Photo 3x3",null,null,"Kepala Madrasah",null,null,null,null,"Pas Photo 3x3",null,null,"Kepala Madrasah"]
[]
[]
[null,null,null,null,null,{"$f":"'DATA KARTU'!$D$4","v":"SAHRONI,S.Pd.I"},null,null,null,null,null,null,null,{"$f":"'DATA KARTU'!$D$4","v":"SAHRONI,S.Pd.I"}]
[]
[]
[]
[]
[null,{"$f":"'DATA KARTU'!$D$1&\" \"&'DATA KARTU'!H1","v":"KARTU TANDA PESERTA UAMNU"},null,null,null,null,"RUANG",null,null,{"$f":"'DATA KARTU'!$D$1&\" \"&'DATA KARTU'!H1","v":"KARTU TANDA PESERTA UAMNU"},null,null,null,null,"RUANG"]
[null,{"$f":"'DATA KARTU'!$D$2&\" \"&'DATA KARTU'!H2","v":"TAHUN PELAJARAN 2020/2021"},null,null,null,null,{"$f":"'DATA KARTU'!$B63","v":"1C"},null,null,{"$f":"'DATA KARTU'!$D$2&\" \"&'DATA KARTU'!H2","v":"TAHUN PELAJARAN 2020/2021"},null,null,null,null,{"$f":"'DATA KARTU'!$B64","v":"1C"}]
[null,{"$f":"'DATA KARTU'!$D$3","v":"MIS NURUL ISLAM LABRUK KIDUL"},null,null,null,null,null,null,null,{"$f":"'DATA KARTU'!$D$3","v":"MIS NURUL ISLAM LABRUK KIDUL"}]
[]
[null,null,"Nomor Peserta",null,":",{"$f":"'DATA KARTU'!$C63","v":"1-2021-055-2"},null,null,null,null,"Nomor Peserta",null,":",{"$f":"'DATA KARTU'!$C64","v":"1-2021-056-9"}]
[null,null,"Nama Peserta",null,":",{"$f":"'DATA KARTU'!$D63","v":"MUHAMMAD AMINULLAH MAULUDANI"},null,null,null,null,"Nama Peserta",null,":",{"$f":"'DATA KARTU'!$D64","v":"MUHAMMAD DAVIN  LEVANTINO"}]
[null,null,"Tempat Tanggal Lahir",null,":",{"$f":"'DATA KARTU'!$F63&\", \"&TEXT('DATA KARTU'!$G63,\"dd mmmm yyyy\")","v":"Lumajang, 09 Maret 2009"},null,null,null,null,"Tempat Tanggal Lahir",null,":",{"$f":"'DATA KARTU'!$F64&\", \"&TEXT('DATA KARTU'!$G64,\"dd mmmm yyyy\")","v":"Lumajang, 23 Agustus 2008"}]
[]
[null,null,null,null,null,{"$f":"'DATA KARTU'!$D$5&\", \"&TEXT('DATA KARTU'!$D$6,\"dd mmmm yyyy\")","v":"Labruk Kidul, 22 Januari 2021"},null,null,null,null,null,null,null,{"$f":"'DATA KARTU'!$D$5&\", \"&TEXT('DATA KARTU'!$D$6,\"dd mmmm yyyy\")","v":"Labruk Kidul, 22 Januari 2021"}]
[null,null,"Pas Photo 3x3",null,null,"Kepala Madrasah",null,null,null,null,"Pas Photo 3x3",null,null,"Kepala Madrasah"]
[]
[]
[null,null,null,null,null,{"$f":"'DATA KARTU'!$D$4","v":"SAHRONI,S.Pd.I"},null,null,null,null,null,null,null,{"$f":"'DATA KARTU'!$D$4","v":"SAHRONI,S.Pd.I"}]
[]
[]
[]
[]
[null,{"$f":"'DATA KARTU'!$D$1&\" \"&'DATA KARTU'!H1","v":"KARTU TANDA PESERTA UAMNU"},null,null,null,null,"RUANG",null,null,{"$f":"'DATA KARTU'!$D$1&\" \"&'DATA KARTU'!H1","v":"KARTU TANDA PESERTA UAMNU"},null,null,null,null,"RUANG"]
[null,{"$f":"'DATA KARTU'!$D$2&\" \"&'DATA KARTU'!H2","v":"TAHUN PELAJARAN 2020/2021"},null,null,null,null,{"$f":"'DATA KARTU'!$B65","v":"1C"},null,null,{"$f":"'DATA KARTU'!$D$2&\" \"&'DATA KARTU'!H2","v":"TAHUN PELAJARAN 2020/2021"},null,null,null,null,{"$f":"'DATA KARTU'!$B66","v":"1C"}]
[null,{"$f":"'DATA KARTU'!$D$3","v":"MIS NURUL ISLAM LABRUK KIDUL"},null,null,null,null,null,null,null,{"$f":"'DATA KARTU'!$D$3","v":"MIS NURUL ISLAM LABRUK KIDUL"}]
[]
[null,null,"Nomor Peserta",null,":",{"$f":"'DATA KARTU'!$C65","v":"1-2021-057-8"},null,null,null,null,"Nomor Peserta",null,":",{"$f":"'DATA KARTU'!$C66","v":"1-2021-058-7"}]
[null,null,"Nama Peserta",null,":",{"$f":"'DATA KARTU'!$D65","v":"MUHAMMAD MAULANA PAHLEVY"},null,null,null,null,"Nama Peserta",null,":",{"$f":"'DATA KARTU'!$D66","v":"RADITYA NIRWANSYAH"}]
[null,null,"Tempat Tanggal Lahir",null,":",{"$f":"'DATA KARTU'!$F65&\", \"&TEXT('DATA KARTU'!$G65,\"dd mmmm yyyy\")","v":"Lumajang, 08 April 2009"},null,null,null,null,"Tempat Tanggal Lahir",null,":",{"$f":"'DATA KARTU'!$F66&\", \"&TEXT('DATA KARTU'!$G66,\"dd mmmm yyyy\")","v":"Lumajang, 01 Oktober 2008"}]
[]
[null,null,null,null,null,{"$f":"'DATA KARTU'!$D$5&\", \"&TEXT('DATA KARTU'!$D$6,\"dd mmmm yyyy\")","v":"Labruk Kidul, 22 Januari 2021"},null,null,null,null,null,null,null,{"$f":"'DATA KARTU'!$D$5&\", \"&TEXT('DATA KARTU'!$D$6,\"dd mmmm yyyy\")","v":"Labruk Kidul, 22 Januari 2021"}]
[null,null,"Pas Photo 3x3",null,null,"Kepala Madrasah",null,null,null,null,"Pas Photo 3x3",null,null,"Kepala Madrasah"]
[]
[]
[null,null,null,null,null,{"$f":"'DATA KARTU'!$D$4","v":"SAHRONI,S.Pd.I"},null,null,null,null,null,null,null,{"$f":"'DATA KARTU'!$D$4","v":"SAHRONI,S.Pd.I"}]
[]
[]
[]
[]
[null,{"$f":"'DATA KARTU'!$D$1&\" \"&'DATA KARTU'!H1","v":"KARTU TANDA PESERTA UAMNU"},null,null,null,null,"RUANG",null,null,{"$f":"'DATA KARTU'!$D$1&\" \"&'DATA KARTU'!H1","v":"KARTU TANDA PESERTA UAMNU"},null,null,null,null,"RUANG"]
[null,{"$f":"'DATA KARTU'!$D$2&\" \"&'DATA KARTU'!H2","v":"TAHUN PELAJARAN 2020/2021"},null,null,null,null,{"$f":"'DATA KARTU'!$B67","v":"1C"},null,null,{"$f":"'DATA KARTU'!$D$2&\" \"&'DATA KARTU'!H2","v":"TAHUN PELAJARAN 2020/2021"},null,null,null,null,{"$f":"'DATA KARTU'!$B68","v":"1C"}]
[null,{"$f":"'DATA KARTU'!$D$3","v":"MIS NURUL ISLAM LABRUK KIDUL"},null,null,null,null,null,null,null,{"$f":"'DATA KARTU'!$D$3","v":"MIS NURUL ISLAM LABRUK KIDUL"}]
[]
[null,null,"Nomor Peserta",null,":",{"$f":"'DATA KARTU'!$C67","v":"1-2021-059-6"},null,null,null,null,"Nomor Peserta",null,":",{"$f":"'DATA KARTU'!$C68","v":"1-2021-060-5"}]
[null,null,"Nama Peserta",null,":",{"$f":"'DATA KARTU'!$D67","v":"REVINA SRI UTARI"},null,null,null,null,"Nama Peserta",null,":",{"$f":"'DATA KARTU'!$D68","v":"REYHAN DWI ANDIKA"}]
[null,null,"Tempat Tanggal Lahir",null,":",{"$f":"'DATA KARTU'!$F67&\", \"&TEXT('DATA KARTU'!$G67,\"dd mmmm yyyy\")","v":"Lumajang, 19 Mei 2008"},null,null,null,null,"Tempat Tanggal Lahir",null,":",{"$f":"'DATA KARTU'!$F68&\", \"&TEXT('DATA KARTU'!$G68,\"dd mmmm yyyy\")","v":"Lumajang, 05 Juli 2008"}]
[]
[null,null,null,null,null,{"$f":"'DATA KARTU'!$D$5&\", \"&TEXT('DATA KARTU'!$D$6,\"dd mmmm yyyy\")","v":"Labruk Kidul, 22 Januari 2021"},null,null,null,null,null,null,null,{"$f":"'DATA KARTU'!$D$5&\", \"&TEXT('DATA KARTU'!$D$6,\"dd mmmm yyyy\")","v":"Labruk Kidul, 22 Januari 2021"}]
[null,null,"Pas Photo 3x3",null,null,"Kepala Madrasah",null,null,null,null,"Pas Photo 3x3",null,null,"Kepala Madrasah"]
[]
[]
[null,null,null,null,null,{"$f":"'DATA KARTU'!$D$4","v":"SAHRONI,S.Pd.I"},null,null,null,null,null,null,null,{"$f":"'DATA KARTU'!$D$4","v":"SAHRONI,S.Pd.I"}]

{"sheet":"DENAH UJIAN","index":3,"n_rows":104,"n_cols":18,"rows_kept":104,"cut":false,"hidden":false,"merged":[[74,0,74,8],[1,0,1,8],[37,0,37,8],[73,0,73,8],[0,0,0,8],[2,0,2,8],[36,0,36,8],[38,0,38,8],[72,0,72,8]]}
[{"$f":"\"DENAH RUANG \"&VLOOKUP($L$6,'DATA KARTU'!$A$9:$N$77,2)","v":"DENAH RUANG 1C"}]
[{"$f":"'DATA KARTU'!J1&\" (\"&'DATA KARTU'!H1&\") TAHUN \"&'DATA KARTU'!H2","v":"UJIAN AKHIR MA'ARIF NU (UAMNU) TAHUN 2020/2021"}]
[{"$f":"'DATA KARTU'!$D$3","v":"MIS NURUL ISLAM LABRUK KIDUL"}]
[]
[null,null,null,null,null,null,null,null,null,null,null,null,null,null,null,null,null,1]
[null,"●",null,"●",null,"●",null,"●",null,null,null,41]
[null,{"$f":"VLOOKUP($L$9,'DATA KARTU'!$A$9:$N$77,3)","v":"1-2021-044-5"},null,{"$f":"VLOOKUP($L$8,'DATA KARTU'!$A$9:$N$77,3)","v":"1-2021-043-6"},null,{"$f":"VLOOKUP($L$7,'DATA KARTU'!$A$9:$N$77,3)","v":"1-2021-042-7"},null,{"$f":"VLOOKUP($L$6,'DATA KARTU'!$A$9:$N$77,3)","v":"1-2021-041-8"},null,null,null,{"$f":"L6+1","v":42}]
[null,{"$f":"VLOOKUP($L$9,'DATA KARTU'!$A$9:$N$77,4)","v":"FAUZIA AMELIA PUTRI"},null,{"$f":"VLOOKUP($L$8,'DATA KARTU'!$A$9:$N$77,4)","v":"FAHRUL AHMAD FAHREZA"},null,{"$f":"VLOOKUP($L$7,'DATA KARTU'!$A$9:$N$77,4)","v":"DEVAN ADITYA SAPUTRA"},null,{"$f":"VLOOKUP($L$6,'DATA KARTU'!$A$9:$N$77,4)","v":"ASFAN FAKHRI BARANI"},null,null,null,{"$f":"L7+1","v":43}]
[null,null,null,null,null,null,null,null,null,null,null,44]
[null,null,null,null,null,null,null,null,null,null,null,45]
[null,"●",null,"●",null,"●",null,"●",null,null,null,46]
[null,{"$f":"VLOOKUP($L$10,'DATA KARTU'!$A$9:$N$77,3)","v":"1-2021-045-4"},null,{"$f":"VLOOKUP($L$11,'DATA KARTU'!$A$9:$N$77,3)","v":"1-2021-046-3"},null,{"$f":"VLOOKUP($L$12,'DATA KARTU'!$A$9:$N$77,3)","v":"1-2021-047-2"},null,{"$f":"VLOOKUP($L$13,'DATA KARTU'!$A$9:$N$77,3)","v":"1-2021-048-9"},null,null,null,47]
[null,{"$f":"VLOOKUP($L$10,'DATA KARTU'!$A$9:$N$77,4)","v":"FAZA AZIFAH SALSABILA"},null,{"$f":"VLOOKUP($L$11,'DATA KARTU'!$A$9:$N$77,4)","v":"HABIBIE NURUSSALAM"},null,{"$f":"VLOOKUP($L$12,'DATA KARTU'!$A$9:$N$77,4)","v":"HIMATURROSYIDAH"},null,{"$f":"VLOOKUP($L$13,'DATA KARTU'!$A$9:$N$77,4)","v":"IFKARINA NAILA SAUQYA"},null,null,null,48]
[null,null,null,null,null,null,null,null,null,null,null,49]
[null,null,null,null,null,null,null,null,null,null,null,50]
[null,"●",null,"●",null,"●",null,"●",null,null,null,51]
[null,{"$f":"VLOOKUP($L$17,'DATA KARTU'!$A$9:$N$77,3)","v":"1-2021-052-5"},null,{"$f":"VLOOKUP($L$16,'DATA KARTU'!$A$9:$N$77,3)","v":"1-2021-051-6"},null,{"$f":"VLOOKUP($L$15,'DATA KARTU'!$A$9:$N$77,3)","v":"1-2021-050-7"},null,{"$f":"VLOOKUP($L$14,'DATA KARTU'!$A$9:$N$77,3)","v":"1-2021-049-8"},null,null,null,52]
[null,{"$f":"VLOOKUP($L$17,'DATA KARTU'!$A$9:$N$77,4)","v":"MOHAMMAD NAUFAL NAWWARUDDIN"},null,{"$f":"VLOOKUP($L$16,'DATA KARTU'!$A$9:$N$77,4)","v":"MOHAMAD NUR KHAFID KHABIBULLOH"},null,{"$f":"VLOOKUP($L$15,'DATA KARTU'!$A$9:$N$77,4)","v":"MOCHAMMAD RENO FIRMANSYA"},null,{"$f":"VLOOKUP($L$14,'DATA KARTU'!$A$9:$N$77,4)","v":"KEISA AYU SASKIYAH"},null,null,null,53]
[null,null,null,null,null,null,null,null,null,null,null,54]
[null,null,null,null,null,null,null,null,null,null,null,55]
[null,"●",null,"●",null,"●",null,"●",null,null,null,56]
[null,{"$f":"VLOOKUP($L$18,'DATA KARTU'!$A$9:$N$77,3)","v":"1-2021-053-4"},null,{"$f":"VLOOKUP($L$19,'DATA KARTU'!$A$9:$N$77,3)","v":"1-2021-054-3"},null,{"$f":"VLOOKUP($L$20,'DATA KARTU'!$A$9:$N$77,3)","v":"1-2021-055-2"},null,{"$f":"VLOOKUP($L$21,'DATA KARTU'!$A$9:$N$77,3)","v":"1-2021-056-9"},null,null,null,57]
[null,{"$f":"VLOOKUP($L$18,'DATA KARTU'!$A$9:$N$77,4)","v":"MUCHAMAD PRIMA PAMBUDI"},null,{"$f":"VLOOKUP($L$19,'DATA KARTU'!$A$9:$N$77,4)","v":"MUHAMMAD ALFAN FATHONI"},null,{"$f":"VLOOKUP($L$20,'DATA KARTU'!$A$9:$N$77,4)","v":"MUHAMMAD AMINULLAH MAULUDANI"},null,{"$f":"VLOOKUP($L$21,'DATA KARTU'!$A$9:$N$77,4)","v":"MUHAMMAD DAVIN  LEVANTINO"},null,null,null,58]
[null,null,null,null,null,null,null,null,null,null,null,59]
[null,null,null,null,null,null,null,null,null,null,null,60]
[null,"●",null,"●",null,"●",null,"●"]
[null,{"$f":"VLOOKUP($L$25,'DATA KARTU'!$A$9:$N$77,3)","v":"1-2021-060-5"},null,{"$f":"VLOOKUP($L$24,'DATA KARTU'!$A$9:$N$77,3)","v":"1-2021-059-6"},null,{"$f":"VLOOKUP($L$23,'DATA KARTU'!$A$9:$N$77,3)","v":"1-2021-058-7"},null,{"$f":"VLOOKUP($L$22,'DATA KARTU'!$A$9:$N$77,3)","v":"1-2021-057-8"}]
[null,{"$f":"VLOOKUP($L$25,'DATA KARTU'!$A$9:$N$77,4)","v":"REYHAN DWI ANDIKA"},null,{"$f":"VLOOKUP($L$24,'DATA KARTU'!$A$9:$N$77,4)","v":"REVINA SRI UTARI"},null,{"$f":"VLOOKUP($L$23,'DATA KARTU'!$A$9:$N$77,4)","v":"RADITYA NIRWANSYAH"},null,{"$f":"VLOOKUP($L$22,'DATA KARTU'!$A$9:$N$77,4)","v":"MUHAMMAD MAULANA PAHLEVY"}]
[]
[]
[null,null,null,"PENGAWAS",null,"PENGAWAS"]
[null,null,null,"●",null,"●"]
[]
[]
[]
[]
[{"$f":"\"DENAH RUANG \"&'DATA KARTU'!B29","v":"DENAH RUANG 1B"}]
[{"$f":"A2","v":"UJIAN AKHIR MA'ARIF NU (UAMNU) TAHUN 2020/2021"}]
[{"$f":"'DATA KARTU'!$D$3","v":"MIS NURUL ISLAM LABRUK KIDUL"}]
[]
[]
[null,"●",null,"●",null,"●",null,"●"]
[null,{"$f":"'DATA KARTU'!$C48","v":"1-2021-040-9"},null,{"$f":"'DATA KARTU'!$C47","v":"1-2021-039-2"},null,{"$f":"'DATA KARTU'!$C46","v":"1-2021-038-3"},null,{"$f":"'DATA KARTU'!$C45","v":"1-2021-037-4"}]
[null,{"$f":"'DATA KARTU'!$D48","v":"ANDREAN DWI YULIANO"},null,{"$f":"'DATA KARTU'!$D47","v":"AKHMAD RIDWAN"},null,{"$f":"'DATA KARTU'!$D46","v":"ACHMAD YANI"},null,{"$f":"'DATA KARTU'!$D45","v":"ACHMAD REZA AKRAM ALAUDDIN"}]
[]
[]
[null,"●",null,"●",null,"●",null,"●"]
[null,{"$f":"'DATA KARTU'!$C41","v":"1-2021-033-8"},null,{"$f":"'DATA KARTU'!$C42","v":"1-2021-034-7"},null,{"$f":"'DATA KARTU'!$C43","v":"1-2021-035-6"},null,{"$f":"'DATA KARTU'!$C44","v":"1-2021-036-5"}]
[null,{"$f":"'DATA KARTU'!$D41","v":"ABD. ROCHMAN NAJA FATLAN PRATAMA"},null,{"$f":"'DATA KARTU'!$D42","v":"ABDURRAHMAN FAQIH"},null,{"$f":"'DATA KARTU'!$D43","v":"ACHMAD FARROIHUN MUSHOBIRONILLAH"},null,{"$f":"'DATA KARTU'!$D44","v":"ACHMAD HASBI ASSIDDIQI"}]
[]
[]
[null,"●",null,"●",null,"●",null,"●"]
[null,{"$f":"'DATA KARTU'!$C40","v":"1-2021-032-9"},null,{"$f":"'DATA KARTU'!$C39","v":"1-2021-031-2"},null,{"$f":"'DATA KARTU'!$C38","v":"1-2021-030-3"},null,{"$f":"'DATA KARTU'!$C37","v":"1-2021-029-4"}]
[null,{"$f":"'DATA KARTU'!$D40","v":"ZASKIA AYU RISTA"},null,{"$f":"'DATA KARTU'!$D39","v":"USWATUN KHOIRUNNISA"},null,{"$f":"'DATA KARTU'!$D38","v":"SITI ROBI`ATUL MAULIDIYAH"},null,{"$f":"'DATA KARTU'!$D37","v":"SHAHWA PUTRI SALSABYLA"}]
[]
[]
[null,"●",null,"●",null,"●",null,"●"]
[null,{"$f":"'DATA KARTU'!$C33","v":"1-2021-025-8"},null,{"$f":"'DATA KARTU'!$C34","v":"1-2021-026-7"},null,{"$f":"'DATA KARTU'!$C35","v":"1-2021-027-6"},null,{"$f":"'DATA KARTU'!$C36","v":"1-2021-028-5"}]
[null,{"$f":"'DATA KARTU'!$D33","v":"NURIL RAMADHANI"},null,{"$f":"'DATA KARTU'!$D34","v":"RAHAYU IKA AGUSTIN"},null,{"$f":"'DATA KARTU'!$D35","v":"RIF`ATUL MUNAWAROH"},null,{"$f":"'DATA KARTU'!$D36","v":"SHABRINA ROSEMILA AN-NADHIFAH"}]
[]
[]
[null,"●",null,"●",null,"●",null,"●"]
[null,{"$f":"'DATA KARTU'!$C32","v":"1-2021-024-9"},null,{"$f":"'DATA KARTU'!$C31","v":"1-2021-023-2"},null,{"$f":"'DATA KARTU'!$C30","v":"1-2021-022-3"},null,{"$f":"'DATA KARTU'!$C29","v":"1-2021-021-4"}]
[null,{"$f":"'DATA KARTU'!$D32","v":"NOVI AGISTA SALSABILLA"},null,{"$f":"'DATA KARTU'!$D31","v":"NISFI RAMADHANI"},null,{"$f":"'DATA KARTU'!$D30","v":"NANDHITA AULIA NUGROHO"},null,{"$f":"'DATA KARTU'!$D29","v":"NABILA PUTRI ZAKIANADA"}]
[]
[]
[null,null,null,"PENGAWAS",null,"PENGAWAS"]
[null,null,null,"●",null,"●"]
[]
[]
[]
[]
[{"$f":"\"DENAH RUANG \"&'DATA KARTU'!B49","v":"DENAH RUANG 1C"}]
[{"$f":"A2","v":"UJIAN AKHIR MA'ARIF NU (UAMNU) TAHUN 2020/2021"}]
[{"$f":"'DATA KARTU'!$D$3","v":"MIS NURUL ISLAM LABRUK KIDUL"}]
[]
[]
[null,"●",null,"●",null,"●",null,"●"]
[null,{"$f":"'DATA KARTU'!$C68","v":"1-2021-060-5"},null,{"$f":"'DATA KARTU'!$C67","v":"1-2021-059-6"},null,{"$f":"'DATA KARTU'!$C66","v":"1-2021-058-7"},null,{"$f":"'DATA KARTU'!$C65","v":"1-2021-057-8"}]
[null,{"$f":"'DATA KARTU'!$D68","v":"REYHAN DWI ANDIKA"},null,{"$f":"'DATA KARTU'!$D67","v":"REVINA SRI UTARI"},null,{"$f":"'DATA KARTU'!$D66","v":"RADITYA NIRWANSYAH"},null,{"$f":"'DATA KARTU'!$D65","v":"MUHAMMAD MAULANA PAHLEVY"}]
[]
[]
[null,"●",null,"●",null,"●",null,"●"]
[null,{"$f":"'DATA KARTU'!$C61","v":"1-2021-053-4"},null,{"$f":"'DATA KARTU'!$C62","v":"1-2021-054-3"},null,{"$f":"'DATA KARTU'!$C63","v":"1-2021-055-2"},null,{"$f":"'DATA KARTU'!$C64","v":"1-2021-056-9"}]
[null,{"$f":"'DATA KARTU'!$D61","v":"MUCHAMAD PRIMA PAMBUDI"},null,{"$f":"'DATA KARTU'!$D62","v":"MUHAMMAD ALFAN FATHONI"},null,{"$f":"'DATA KARTU'!$D63","v":"MUHAMMAD AMINULLAH MAULUDANI"},null,{"$f":"'DATA KARTU'!$D64","v":"MUHAMMAD DAVIN  LEVANTINO"}]
[]
[]
[null,"●",null,"●",null,"●",null,"●"]
[null,{"$f":"'DATA KARTU'!$C60","v":"1-2021-052-5"},null,{"$f":"'DATA KARTU'!$C59","v":"1-2021-051-6"},null,{"$f":"'DATA KARTU'!$C58","v":"1-2021-050-7"},null,{"$f":"'DATA KARTU'!$C57","v":"1-2021-049-8"}]
[null,{"$f":"'DATA KARTU'!$D60","v":"MOHAMMAD NAUFAL NAWWARUDDIN"},null,{"$f":"'DATA KARTU'!$D59","v":"MOHAMAD NUR KHAFID KHABIBULLOH"},null,{"$f":"'DATA KARTU'!$D58","v":"MOCHAMMAD RENO FIRMANSYA"},null,{"$f":"'DATA KARTU'!$D57","v":"KEISA AYU SASKIYAH"}]
[]
[]
[null,"●",null,"●",null,"●",null,"●"]
[null,{"$f":"'DATA KARTU'!$C53","v":"1-2021-045-4"},null,{"$f":"'DATA KARTU'!$C54","v":"1-2021-046-3"},null,{"$f":"'DATA KARTU'!$C55","v":"1-2021-047-2"},null,{"$f":"'DATA KARTU'!$C56","v":"1-2021-048-9"}]
[null,{"$f":"'DATA KARTU'!$D53","v":"FAZA AZIFAH SALSABILA"},null,{"$f":"'DATA KARTU'!$D54","v":"HABIBIE NURUSSALAM"},null,{"$f":"'DATA KARTU'!$D55","v":"HIMATURROSYIDAH"},null,{"$f":"'DATA KARTU'!$D56","v":"IFKARINA NAILA SAUQYA"}]
[]
[]
[null,"●",null,"●",null,"●",null,"●"]
[null,{"$f":"'DATA KARTU'!$C52","v":"1-2021-044-5"},null,{"$f":"'DATA KARTU'!$C51","v":"1-2021-043-6"},null,{"$f":"'DATA KARTU'!$C50","v":"1-2021-042-7"},null,{"$f":"'DATA KARTU'!$C49","v":"1-2021-041-8"}]
[null,{"$f":"'DATA KARTU'!$D52","v":"FAUZIA AMELIA PUTRI"},null,{"$f":"'DATA KARTU'!$D51","v":"FAHRUL AHMAD FAHREZA"},null,{"$f":"'DATA KARTU'!$D50","v":"DEVAN ADITYA SAPUTRA"},null,{"$f":"'DATA KARTU'!$D49","v":"ASFAN FAKHRI BARANI"}]
[]
[]
[null,null,null,"PENGAWAS",null,"PENGAWAS"]
[null,null,null,"●",null,"●"]

{"sheet":"TULISAN TEMPEL PENSIL","index":4,"n_rows":55,"n_cols":2,"rows_kept":55,"cut":false,"hidden":false,"merged":[]}
["ADIMUL MU'DAM ALI HASAN MUHAMMAD ALBANIN","ADIMUL MU'DAM ALI HASAN MUHAMMAD ALBANIN"]
["AHMAD MASLUFI","AHMAD MASLUFI"]
["AHMAD MASLUKHI","AHMAD MASLUKHI"]
["AKHMAD MIFTAKHUL ULUM","AKHMAD MIFTAKHUL ULUM"]
["AKHMAD ROKHANI YUSUF","AKHMAD ROKHANI YUSUF"]
["ANANDA DWI REZA MUSLIM","ANANDA DWI REZA MUSLIM"]
["ANIFATIMATUS SHOLICHAH","ANIFATIMATUS SHOLICHAH"]
["ANTI HANA KHAIRINNISA","ANTI HANA KHAIRINNISA"]
["DIMAS SAPUTRA","DIMAS SAPUTRA"]
["DWI AMAR MAHENDRA","DWI AMAR MAHENDRA"]
["EIDJA RAHMA SARI","EIDJA RAHMA SARI"]
["ELMA NUR YANTI","ELMA NUR YANTI"]
["FIRLINA AMELIA","FIRLINA AMELIA"]
["IDHA ARIFATUL KHOIROH","IDHA ARIFATUL KHOIROH"]
["IMAM MASLUKHI RAMADANI","IMAM MASLUKHI RAMADANI"]
["INAYATUL CHOIROH","INAYATUL CHOIROH"]
["INDANA ZULFA","INDANA ZULFA"]
["INDANA ZULFA","INDANA ZULFA"]
["INKA RIZKI NADIROH","INKA RIZKI NADIROH"]
["LISA AL FALAH PUTRI","LISA AL FALAH PUTRI"]
["MUKHAMAD IRMAS FIRMANSYAH","MUKHAMAD IRMAS FIRMANSYAH"]
["MUHAMAD RIDHO SAPUTRA","MUHAMAD RIDHO SAPUTRA"]
["MOCHAMAD DIMAS IRWANTO","MOCHAMAD DIMAS IRWANTO"]
["MOCHAMMAD RIDHO MAGHFUR","MOCHAMMAD RIDHO MAGHFUR"]
["MUHAMAD ZIDAN ALYANDI","MUHAMAD ZIDAN ALYANDI"]
["MUHAMMAD IKHWAN MAULANA","MUHAMMAD IKHWAN MAULANA"]
["MUHAMMAD RIZQY MULYA","MUHAMMAD RIZQY MULYA"]
["MOHAMMAD ROJAB","MOHAMMAD ROJAB"]
["MUCHAMAD NUR HIDAYAT","MUCHAMAD NUR HIDAYAT"]
["MUCHAMMAD TEGAR AURA SAPUTRA","MUCHAMMAD TEGAR AURA SAPUTRA"]
["MUHAMMAD DIDI PRAYOGI","MUHAMMAD DIDI PRAYOGI"]
["MUHAMMAD FADLI FIRMANSYAH","MUHAMMAD FADLI FIRMANSYAH"]
["MUHAMMAD SYARIFUDIN","MUHAMMAD SYARIFUDIN"]
["MUHAMMAD ZAENURI","MUHAMMAD ZAENURI"]
["MUKHAMMAD AUNILLAH SYAHPUTRA","MUKHAMMAD AUNILLAH SYAHPUTRA"]
["MUSLIM ABDILLAH","MUSLIM ABDILLAH"]
["NABILATUL KHOIROH","NABILATUL KHOIROH"]
["NADIA MUFIDATUN NISA","NADIA MUFIDATUN NISA"]
["NANIK SRI AGUSTIN","NANIK SRI AGUSTIN"]
["NAZWA NAFISAH","NAZWA NAFISAH"]
["NUR KHAMIDAH","NUR KHAMIDAH"]
["NUR LAILA REZA AGUSTIN","NUR LAILA REZA AGUSTIN"]
["PRISISKA DWIFALENTINA","PRISISKA DWIFALENTINA"]
["PUTRI DUWI OKTAFIYA","PUTRI DUWI OKTAFIYA"]
["QURROTIL A'YUN","QURROTIL A'YUN"]
["RESINATA ALFIYANTI","RESINATA ALFIYANTI"]
["RINA UTARI","RINA UTARI"]
["SITI USWATUN KHASANAH","SITI USWATUN KHASANAH"]
["TASYA DWI MAISYAROH","TASYA DWI MAISYAROH"]
["TASYA WURI INDRAWATI","TASYA WURI INDRAWATI"]
["TORIQUN NAFIK","TORIQUN NAFIK"]
["VENI DWI ISAPUTRI","VENI DWI ISAPUTRI"]
["WASIQ RIZKI ILMIAH","WASIQ RIZKI ILMIAH"]
["WINDA DWI SEPTIANI","WINDA DWI SEPTIANI"]
["WINDI AGUSTINA","WINDI AGUSTINA"]